Cogmind - Beta 16 @@@ ROGUE MODE // 2025.11.11 @ 17:36:34 Player: Dosh Result: Destroyed by B-99 Colossus with Multirail Performance ------------- Evolutions (9) 4500 Regions Visited (34) 6800 Robots Destroyed (458) 2290 Value Destroyed (30032) 30032 Prototype IDs (75) 1500 Alien Tech Used (0) 0 Bonus (30149) 30149 TOTAL SCORE: 75271 Bonus ------- High Alert Combat Kills 3881 Follower Combat Kills 14936 Entered Garrisons 2600 Used RIF Installer 8500 Aligned with FarCom 300 Friendly Fire -68 Cogmind --------- Core Integrity 0/1600 Matter 300/300 Energy 98/100 System Corruption 45% Temperature Cool (0) Movement Core (50) Location -1/Command Parts ------- > --- POWER (4) -------- (None) > --- PROPULSION (6) --- (None) > --- UTILITY (13) ----- (None) > --- WEAPON (2) ------- (None) > --- INVENTORY (5) ---- Light Quantum Reactor Advanced Cooling System Relay Coupler [Sentry] (33) Compact HERF Cannon Enhanced Hardcell Cannon Peak State ------------ > --- POWER ------------ Heavy Antimatter Reactor Quantum Reactor Quantum Reactor Improved Quantum Reactor > --- PROPULSION ------- Centrium Heavy Treads Centrium Heavy Treads Biometal Heavy Treads > --- UTILITY ---------- Huge Storage Unit Experimental Core Analyzer Quantum Capacitor Advanced Force Field Relay Coupler [NC] Relay Coupler [Grunt] Relay Coupler [Behemoth] Relay Coupler [Proto] Relay Coupler [Proto] Relay Coupler [Proto] Relay Coupler [Proto] Relay Coupler [Proto] > --- WEAPON ----------- Enhanced Nova Cannon Advanced Remote Datajack > --- INVENTORY -------- Quantum Reactor Improved Heavy Siege Treads Advanced Heat Sink Advanced Cooling System Advanced Cooling System Experimental Coolant Injector Improved Medium Armor Plating Graphene Brace Relay Coupler [Sentry] Compact HERF Cannon Enhanced Nova Cannon Enhanced Hardcell Cannon Enhanced Hardcell Cannon [Rating: 205] Favorites ----------- Power Quantum Reactor Engine Cooled Ion Engine Power Core Backup Power VII Reactor Quantum Reactor Propulsion Armored Treads Treads Armored Treads Leg Biometal Leg Utility Huge Storage Unit Device Improved Heat Sink Storage Huge Storage Unit Processor 0b10 Alert Chip Hackware Relay Coupler [Grunt] Protection Improved Medium Armor Plating Weapon Heavy Particle Cannon Energy Gun Medium Laser Energy Cannon Heavy Particle Cannon Ballistic Gun Assault Rifle Ballistic Cannon Enhanced Hardcell Cannon Launcher Rocket Launcher Special Weapon Remote Datajack Slashing Weapon Katana Special Melee Weapon Datajack Build | -11 -10 -10 -9 -9 -9 -8 -8 -8 -8 -8 -7 -7 -7 -7 -7 -7 -6 -6 -5 -5 -5 -5 -5 -5 -4 -4 -3 -3 -2 -2 -1 -1 -1 -1 ------- Run | Yrd Mat Min Mat Min Exi Min Mat Gar Mat Gar Fac Gar Fac Gar Fac Gar Fac Gar Fac Gar Fac Gar Fac Gar Fac Gar Res Gar Res Gar Acc Gar Acc Com Slots Evolved 18 | . . . 2 . . . 2 . . . 2 . . . . . 2 . 2 . . . . . 2 . 2 . 2 . 2 . . . Power 3 | . . . . . . . . . . . . . . . . . 1 . . . . . . . 1 . . . . . 1 . . . Propulsion 4 | . . . 1 . . . 1 . . . . . . . . . . . . . . . . . . . 2 . . . . . . . Utility 11 | . . . 1 . . . 1 . . . 2 . . . . . 1 . 2 . . . . . 1 . . . 2 . 1 . . . Weapon . | . . . . . . . . . . . . . . . . . . . . . . . . . . . . . . . . . . . Parts Attached 292 | 7 11 4 27 1 1 3 11 4 7 5 12 15 6 6 13 9 9 10 2 17 4 14 2 11 7 7 3 10 7 4 10 6 10 17 Power 41 | 1 4 . 4 . . . . . . 1 1 3 . . 1 1 2 . . 3 1 . . 2 3 . . 3 1 . 4 1 3 2 Engine 14 | 1 3 . 4 . . . . . . 1 . 2 . . . . 2 . . . 1 . . . . . . . . . . . . . Core 4 | . 1 . . . . . . . . . 1 . . . . 1 . . . . . . . 1 . . . . . . . . . . Reactor 23 | . . . . . . . . . . . . 1 . . 1 . . . . 3 . . . 1 3 . . 3 1 . 4 1 3 2 Propulsion 44 | 3 . 1 10 . . . 3 1 2 . 4 2 1 . 1 1 . . . 3 . 1 . 2 . . 1 1 3 . . . . 4 Treads 40 | 2 . 1 10 . . . 3 1 2 . 4 2 1 . 1 1 . . . 3 . 1 . 2 . . 1 1 3 . . . . 1 Leg 4 | 1 . . . . . . . . . . . . . . . . . . . . . . . . . . . . . . . . . 3 Wheel . | . . . . . . . . . . . . . . . . . . . . . . . . . . . . . . . . . . . Hover . | . . . . . . . . . . . . . . . . . . . . . . . . . . . . . . . . . . . Flight . | . . . . . . . . . . . . . . . . . . . . . . . . . . . . . . . . . . . Utility 152 | 1 1 2 5 . 1 1 7 2 3 2 5 7 4 6 6 7 6 10 1 11 2 11 2 6 4 6 1 5 2 3 5 4 6 7 Device 37 | . 1 1 1 . . 1 1 1 1 . 1 1 . 1 2 3 . 4 . 3 . 2 . 2 1 3 . . 1 1 . . 4 1 Storage 6 | 1 . 1 . . 1 . 1 . . . . . 1 . 1 . . . . . . . . . . . . . . . . . . . Processor 5 | . . . . . . . . . . . 1 . . . . . 2 . . . . . . . . . . . . . 1 . . 1 Hackware 84 | . . . . . . . 1 . 1 1 2 6 3 5 2 4 2 5 1 7 1 9 2 4 3 2 1 5 1 2 3 4 2 5 Protection 20 | . . . 4 . . . 4 1 1 1 1 . . . 1 . 2 1 . 1 1 . . . . 1 . . . . 1 . . . Artifact . | . . . . . . . . . . . . . . . . . . . . . . . . . . . . . . . . . . . Weapon 55 | 2 6 1 8 1 . 2 1 1 2 2 2 3 1 . 5 . 1 . 1 . 1 2 . 1 . 1 1 1 1 1 1 1 1 4 Energy Gun 2 | 1 . . . . . . . . . . . . . . 1 . . . . . . . . . . . . . . . . . . . Energy Cannon 19 | . . . 5 . . 2 . . . 1 1 3 1 . 1 . 1 . . . . 1 . 1 . . . . 1 . . . . 1 Ballistic Gun 9 | 1 5 . 3 . . . . . . . . . . . . . . . . . . . . . . . . . . . . . . . Ballistic Cannon 1 | . . . . . . . . . . . . . . . . . . . . . . . . . . . . . . . . . . 1 Launcher 6 | . . 1 . 1 . . . 1 . . . . . . 2 . . . 1 . . . . . . . . . . . . . . . Special Weapon 15 | . . . . . . . . . 2 . 1 . . . 1 . . . . . 1 1 . . . 1 1 1 . 1 1 1 1 2 Impact Weapon . | . . . . . . . . . . . . . . . . . . . . . . . . . . . . . . . . . . . Slashing Weapon 1 | . . . . . . . . . . 1 . . . . . . . . . . . . . . . . . . . . . . . . Piercing Weapon . | . . . . . . . . . . . . . . . . . . . . . . . . . . . . . . . . . . . Special Melee Weapon 2 | . 1 . . . . . 1 . . . . . . . . . . . . . . . . . . . . . . . . . . . Unidentified Prototypes 13 | . . . 3 . . . . . . . . . . . 7 . . . 1 . 1 . . . 1 . . . . . . . . . Corrupted Parts 2 | . . . . . . . . . . . . . . . . . . . . . . . . . . . . . . . . . . 2 System Corruption 11 | . . . . . . . . . . . . . . . . . . . . . . . . . . . . . . . . . . 11 Parts Lost 64 | . 2 1 3 . . . 1 2 . . . . . 3 3 1 2 . . 1 . 1 3 6 . . 1 . . 1 . 2 5 26 Power 7 | . . . . . . . . . . . . . . . . . . . . . . . . 2 . . . . . . . . 1 4 Propulsion 11 | . . 1 . . . . . 1 . . . . . . 1 1 . . . . . . . . . . . . . . . . . 7 Utility 34 | . . . 2 . . . 1 1 . . . . . 3 1 . 1 . . 1 . 1 3 2 . . 1 . . 1 . 2 3 11 Weapon 12 | . 2 . 1 . . . . . . . . . . . 1 . 1 . . . . . . 2 . . . . . . . . 1 4 Highest Loss Streak 20 | . 1 1 1 . . . 1 1 . . . . . 2 3 1 2 . . 1 . 1 1 6 . . 1 . . 1 . 1 2 20 To Critical Strikes 2 | . . . . . . . . . . . . . . . . . . . . . . . . . . . . . . . . . 1 1 Average Backups 20 | 1 5 7 17 20 19 18 19 24 25 24 23 21 21 20 22 22 22 22 23 23 21 22 20 21 22 22 23 23 22 23 22 23 21 13 Power 1 | . 1 1 1 2 2 2 2 2 2 1 1 1 1 1 1 2 1 1 1 . 1 1 1 . 2 2 2 2 2 2 1 2 2 1 Propulsion 2 | . . 1 4 6 5 5 5 6 3 3 3 3 2 3 1 . . 1 2 1 1 1 2 1 1 1 . . 1 1 1 1 1 . Utility 11 | . 1 2 4 5 4 5 4 8 13 14 14 12 13 12 14 16 18 17 17 18 15 14 12 14 15 14 17 16 15 16 15 15 13 8 Weapon 3 | . 1 2 5 6 7 5 5 5 4 4 4 4 3 3 3 2 2 1 2 3 3 4 3 3 3 3 3 3 3 2 2 3 3 3 Tool/Special . | . . . . . . . . . . . . . . . . . . . . . . . . . . . . . . . . . . . Unused Backups 61 | . 1 . 10 . 2 . 5 2 1 6 1 4 . 1 1 1 . 2 . 5 . 4 . 3 . 1 . 3 1 1 . 2 . 4 Power 4 | . 1 . 1 . . . . . . . . . . . . . . . . . . . . . . 1 . . . . . . . 1 Propulsion 14 | . . . 2 . . . 4 . . . 1 3 . . . 1 . . . 2 . 1 . . . . . . . . . . . . Utility 30 | . . . . . . . . 2 1 6 . 1 . 1 1 . . 2 . 2 . 3 . 3 . . . 3 . 1 . 2 . 2 Weapon 13 | . . . 7 . 2 . 1 . . . . . . . . . . . . 1 . . . . . . . . 1 . . . . 1 Tool/Special . | . . . . . . . . . . . . . . . . . . . . . . . . . . . . . . . . . . . Average Slot Usage (%) 88 | . 97 100 98 100 78 99 99 100 99 99 99 83 82 83 83 83 84 79 76 83 81 81 80 78 83 82 79 79 81 81 83 83 83 79 Engine 5 | . 11 14 10 11 11 11 8 9 9 9 5 2 . . . . 9 13 11 4 4 5 5 . . . . . . . . . . . Reactor 5 | . . . . . . . . . . . . . 7 7 7 4 . . . 5 5 5 5 8 14 15 14 14 13 13 16 16 15 15 Treads 20 | . 27 28 32 33 33 33 35 36 36 36 30 15 15 15 15 15 13 13 11 14 11 11 11 11 10 10 14 14 13 13 12 12 12 10 Device 12 | . 12 14 11 11 11 11 9 9 8 9 7 6 5 7 6 12 12 10 13 12 17 20 21 11 11 16 20 17 19 22 22 17 16 15 Storage 7 | . 14 14 11 11 11 11 9 9 9 9 7 7 7 7 7 7 6 6 5 5 5 5 5 5 5 5 4 4 4 4 4 4 4 3 Processor 1 | . . . . . . . . . . . 6 7 7 7 7 7 2 . . . . . . . . . . . . . 3 4 4 4 Hackware 13 | . . . . . . . 8 9 14 10 20 15 15 14 17 15 19 14 14 19 14 14 17 25 29 22 16 19 21 16 14 20 21 22 Protection 4 | . . . 10 11 11 11 9 9 3 7 2 6 7 6 4 1 3 6 5 5 7 4 . . . 1 . . 1 3 2 2 2 . Energy Cannon 9 | . . . 19 18 1 20 17 17 17 14 7 9 8 9 6 12 9 7 5 5 4 5 5 5 5 5 4 4 4 3 4 4 4 3 Ballistic Gun 1 | . 24 23 2 . . . . . . . . . . . . . . . . . . . . . . . . . . . . . . . Special Weapon 2 | . . . . . . . . . . . 4 3 5 4 6 1 2 4 5 4 4 5 4 4 5 5 4 4 4 3 3 4 3 2 Peak Build Rating 205 | 6 12 10 26 26 26 27 37 38 40 44 59 80 79 79 80 82 86 86 101 111 111 117 120 118 134 137 164 163 171 173 191 194 197 205 Average Rating 85 | 4 9 9 18 26 21 26 34 37 36 42 52 73 77 77 77 77 80 83 95 96 107 111 115 112 133 132 156 157 168 170 188 191 192 178 On Entrance 87 | . 6 10 10 26 26 22 27 37 36 36 44 59 79 74 79 75 76 79 85 96 111 108 117 114 118 134 137 163 157 170 172 190 192 190 Avg Prop Armor Cover (%) 13 | . . . . . . . . . . . . . . . 15 . . . . . . . . . . . . . . 8 . . . 13 Naked Turns 3 | . . . . . . . . . . . . . . . . . . . . . . . . . . . . . . . . . . 3 Heaviest Build 209 | 14 15 51 64 64 64 64 109 109 108 112 119 114 119 119 117 119 136 145 146 158 162 156 150 145 169 177 174 180 189 195 209 206 207 198 Greatest Support 235 | 40 40 40 60 60 60 60 80 83 83 83 83 150 150 150 150 150 150 150 150 150 150 155 155 160 160 160 235 235 235 235 235 235 235 235 Greatest Overweight (x) 6 | . . 1 2 1 1 1 1 1 1 1 1 1 1 . 1 1 . . . 1 1 1 . . 1 1 . . . 1 . . . 6 Average Overweight (x) . | . . . . 1 . 1 . 1 1 1 1 . . . . . . . . . . . . . . . . . . . . . . . Largest Inventory Capacity 25 | 8 8 20 20 20 20 20 25 25 25 25 25 25 25 25 25 25 25 25 25 25 25 25 25 25 25 25 25 25 25 25 25 25 25 25 Average Capacity 23 | 6 8 19 20 20 20 20 21 25 25 25 25 25 25 25 25 25 25 25 25 25 25 25 25 25 25 25 25 25 25 25 25 25 25 24 Most Carried 25 | 2 8 8 20 20 20 19 23 25 25 25 25 25 25 25 25 25 24 25 24 25 25 25 25 25 25 25 25 25 25 25 24 25 25 20 Average Carried 21 | 1 5 7 17 20 19 18 19 24 24 24 23 24 24 23 24 23 22 22 23 24 23 24 23 22 23 23 23 24 23 24 23 24 22 14 Final Capacity 25 | 8 8 20 20 20 20 20 25 25 25 25 25 25 25 25 25 25 25 25 25 25 25 25 25 25 25 25 25 25 25 25 25 25 25 5 Final Carried 25 | 1 8 7 20 20 20 18 23 25 25 25 23 25 23 25 25 24 22 25 23 24 25 25 22 24 25 25 24 25 24 24 24 25 20 5 Class Distribution -------------------- 57% | Botlord-Mutant 24% | Mutant 12% | Bothacker-Mutant 5% | Scavenger-Mutant Dominant Class ---------------- Mutant | -10/Materials Mutant | -10/Mines Scavenger-Mutant | -9/Materials Mutant | -9/Mines Mutant | -9/Exiles Mutant | -8/Mines Mutant | -8/Materials Mutant | -8/Garrison Bothacker-Mutant | -8/Materials Bothacker-Mutant | -8/Garrison Bothacker-Mutant | -7/Factory Botlord-Mutant | -7/Garrison Botlord-Mutant | -7/Factory Botlord-Mutant | -7/Garrison Botlord-Mutant | -7/Factory Botlord-Mutant | -7/Garrison Botlord-Mutant | -6/Factory Botlord-Mutant | -6/Garrison Botlord-Mutant | -5/Factory Botlord-Mutant | -5/Garrison Botlord-Mutant | -5/Factory Botlord-Mutant | -5/Garrison Botlord-Mutant | -5/Factory Botlord-Mutant | -5/Garrison Botlord-Mutant | -4/Factory Botlord-Mutant | -4/Garrison Botlord-Mutant | -3/Research Botlord-Mutant | -3/Garrison Botlord-Mutant | -2/Research Botlord-Mutant | -2/Garrison Botlord-Mutant | -1/Access Botlord-Mutant | -1/Garrison Botlord-Mutant | -1/Access Botlord-Mutant | -1/Command Resources | -11 -10 -10 -9 -9 -9 -8 -8 -8 -8 -8 -7 -7 -7 -7 -7 -7 -6 -6 -5 -5 -5 -5 -5 -5 -4 -4 -3 -3 -2 -2 -1 -1 -1 -1 ----------- Run | Yrd Mat Min Mat Min Exi Min Mat Gar Mat Gar Fac Gar Fac Gar Fac Gar Fac Gar Fac Gar Fac Gar Fac Gar Fac Gar Res Gar Res Gar Acc Gar Acc Com Matter Collected 13173 | 246 437 341 591 137 . 128 233 342 289 199 150 576 179 460 529 546 273 398 110 446 266 488 459 390 302 233 163 530 430 360 462 677 808 995 Remotely . | . . . . . . . . . . . . . . . . . . . . . . . . . . . . . . . . . . . Salvage Created 21498 | . 758 378 1506 39 . 145 716 1256 804 718 339 1145 374 414 285 643 426 97 59 739 515 661 1180 541 . 257 682 480 . 822 1207 551 2660 1101 Parts 1037 | . 58 27 87 2 . 11 47 58 41 41 22 40 15 17 26 37 20 6 3 32 18 21 50 19 . 12 33 27 . 15 60 31 108 53 Haulers Intercepted 17 | . 2 . 6 . . . 4 . 3 . . . . . 1 . . . . . . . . . . . . . . . 1 . . . Recyclers Shooed 10 | . . . . . . . . . . . 1 . 1 . 1 . 1 . . . . . . . . . . . 1 . 1 . 2 2 Parts Field Recycled . | . . . . . . . . . . . . . . . . . . . . . . . . . . . . . . . . . . . Retrieved Matter . | . . . . . . . . . . . . . . . . . . . . . . . . . . . . . . . . . . . Parts Self-Destructed . | . . . . . . . . . . . . . . . . . . . . . . . . . . . . . . . . . . . Prevented . | . . . . . . . . . . . . . . . . . . . . . . . . . . . . . . . . . . . Parts Restored . | . . . . . . . . . . . . . . . . . . . . . . . . . . . . . . . . . . . Kills | -11 -10 -10 -9 -9 -9 -8 -8 -8 -8 -8 -7 -7 -7 -7 -7 -7 -6 -6 -5 -5 -5 -5 -5 -5 -4 -4 -3 -3 -2 -2 -1 -1 -1 -1 ------- Run | Yrd Mat Min Mat Min Exi Min Mat Gar Mat Gar Fac Gar Fac Gar Fac Gar Fac Gar Fac Gar Fac Gar Fac Gar Fac Gar Res Gar Res Gar Acc Gar Acc Com Combat Hostiles Destroyed 404 | . 14 14 32 6 . 5 11 34 13 18 6 10 5 17 11 25 3 4 1 18 8 11 18 13 . 2 8 10 . 29 14 8 26 10 Melee 2 | . . . . . . . . . . . . . . . . . . . 1 . . . . 1 . . . . . . . . . . Guns 23 | . 14 7 2 . . . . . . . . . . . . . . . . . . . . . . . . . . . . . . . Cannons 266 | . . . 30 2 . 2 10 22 8 15 6 10 5 10 . 14 3 1 . 13 5 10 15 12 . 2 5 7 . 20 11 7 15 6 AOE 74 | . . 7 . 4 . 2 . 11 4 2 . . . 7 11 11 . 3 . 5 1 . 1 . . . 1 . . 4 . . . . Classes Destroyed 23 | . 8 1 2 2 . 1 . 1 1 . . . . . 1 . 1 . . . 1 1 . . . . . 1 . . . . 1 1 Worker 16 | . 1 1 1 . . 2 1 . 1 . . . . . 2 . . . 1 . 1 . 3 . . . . . . . 1 . 1 . Builder 12 | . 1 1 1 . . . . . 3 . . . . . 4 . 1 . . . . . . . . . 1 . . . . . . . Tunneler 4 | . . . . 1 . . . . 1 . . . . . 1 . . . . . . . . . . . 1 . . . . . . . Hauler 17 | . 2 . 6 . . . 4 . 3 . . . . . 1 . . . . . . . . . . . . . . . 1 . . . Recycler 13 | . 1 1 . . . . . . . . 1 . 2 . 1 . 2 . . . . . 1 . . . . . . . . . 3 1 Operator 3 | . 2 . 1 . . . . . . . . . . . . . . . . . . . . . . . . . . . . . . . Watcher 13 | . 1 . 3 . . . 2 . 3 . . . . . 1 . . . . 1 . . 1 . . . . . . . . . . 1 Swarmer 101 | . 3 6 13 . . 3 3 7 3 4 3 4 . 6 5 13 . 3 . 10 4 . 3 5 . . . 3 . . . . . . Cutter 5 | . . . . . . . . . . . . . . . . . . . . . . . . . . . . 3 . . . 2 . . Grunt 98 | . 11 6 8 1 . . 3 18 5 6 2 2 3 5 . 4 . . 1 3 4 4 1 1 . . 3 . . 1 4 1 1 . Brawler 14 | . . . 1 . . . . 4 1 2 . 1 1 1 . 1 . . . 1 1 . . . . . . . . . . . . . Duelist 6 | . . . . . . . . . 1 . . 1 1 2 . . . 1 . . . . . . . . . . . . . . . . Protector 2 | . . . . . . . . . . . . . . . 2 . . . . . . . . . . . . . . . . . . . Sentry 18 | . . . 10 . . . 4 . 3 1 . . . . . . . . . . . . . . . . . . . . . . . . Demolisher 3 | . . . . 1 . . . . . . . . . . . . . . . . . 1 . . . . . . . . 1 . . . Specialist 6 | . . . . . . . . . . . . . . . . . . . . . . 2 . . . . . . . 1 . . 3 . Hunter 52 | . . . . . . 2 1 . . . 1 . . . 3 2 . . . 4 . . 7 . . 1 3 . . . 5 2 16 5 Programmer 64 | . . . . . . . . 5 . 5 1 2 . 3 1 6 2 . . . . 4 6 7 . 1 1 2 . 2 4 3 5 4 Heavy 1 | . . . . . . . . . . . . . . . . . . . . . . . . . . . . . . . . . 1 . Behemoth 6 | . . . . . . . . . . . . . . . . . 1 . . 1 . . . . . . 1 1 . 1 . . . 1 Lightning 1 | . . . . . . . . . . . . . . . . . . . . . . . 1 . . . . . . . . . . . Striker 1 | . . . . . . . . . . . . . . . . . . . . . . . . . . . . . . . . . . 1 Executioner 1 | . . . . . . . . . . . . . . . . . . . . . 1 . . . . . . . . . . . . . Assembled 31 | . . 2 . 5 . . . . . . . . . . . . . . . . . . . . . . . . . 24 . . . . Savage 1 | . . . . . . . . . . . . . . . . . . . . . . . . . . . . 1 . . . . . . Best Kill Streak 18 | . 4 4 6 6 . 5 3 7 6 10 3 5 2 5 11 10 4 3 1 6 2 6 6 10 . 1 3 3 . 18 6 2 10 4 Combat Bots Only 18 | . 3 3 4 6 . 3 3 7 5 10 3 5 2 5 6 10 2 3 1 6 2 6 5 10 . 1 2 3 . 18 5 2 7 4 Max Kills in Single Turn 3 | . 2 3 1 3 . 3 1 3 3 1 1 1 1 2 3 3 2 2 1 3 1 1 2 1 . 1 2 1 . 2 1 1 1 1 Gunslinging . | . . . . . . . . . . . . . . . . . . . . . . . . . . . . . . . . . . . Exploded 3 | . . 2 . 2 . 1 . 3 3 1 . . . 2 3 3 . 2 . 3 1 . 1 . . . 1 . . 2 . . . . Melee 1 | . . . . . . . . . . . . . . . . . . . 1 . . . . 1 . . . . . . . . . . Uniques/NPCs Destroyed . | . . . . . . . . . . . . . . . . . . . . . . . . . . . . . . . . . . . Combat | -11 -10 -10 -9 -9 -9 -8 -8 -8 -8 -8 -7 -7 -7 -7 -7 -7 -6 -6 -5 -5 -5 -5 -5 -5 -4 -4 -3 -3 -2 -2 -1 -1 -1 -1 -------- Run | Yrd Mat Min Mat Min Exi Min Mat Gar Mat Gar Fac Gar Fac Gar Fac Gar Fac Gar Fac Gar Fac Gar Fac Gar Fac Gar Res Gar Res Gar Acc Gar Acc Com Hostile Shots Fired 2369 | . 79 38 106 3 . 16 57 115 41 23 36 106 25 113 81 96 74 57 2 116 34 75 144 109 7 20 40 44 20 99 73 41 205 274 Missed 722 | . 18 6 25 1 . 7 16 30 11 8 16 34 14 26 32 32 24 23 . 32 15 32 34 30 3 7 14 14 8 36 34 10 64 66 Hits 1647 | . 61 32 81 2 . 9 41 85 30 15 20 72 11 87 49 64 50 34 2 84 19 43 110 79 4 13 26 30 12 63 39 31 141 208 Melee 35 | . . . . . . . . 2 . . . . . 3 . . . . . 3 . . . 1 . . . 8 . 9 . 4 . 5 Projectile 1612 | . 61 32 81 2 . 9 41 83 30 15 20 72 11 84 49 64 50 34 2 81 19 43 110 78 4 13 26 22 12 54 39 27 141 203 AOE 23 | . . . . 2 . . . . . . . . . 2 . . . . . 1 2 1 . . . . . . . 3 1 2 1 8 Critical Strikes 74 | . . . 1 . . 1 1 6 . 2 . 1 . 2 . 1 3 . . 4 . 4 2 5 1 . 2 3 1 5 1 3 8 17 Actively Blocked 12 | . . . . . . . . . . . . . . . . . . . . . . . . . 1 . 2 . . . 1 1 4 3 Part Disruptions 8 | . . 1 . . . . . . . . . . . 1 1 1 . . . . . 1 1 . . . . . . 1 . . . 1 Damage Taken 26939 | . 714 405 834 108 . 121 561 1403 442 192 246 893 153 1345 898 897 943 401 38 1181 296 459 1133 1359 199 240 529 693 213 947 506 512 3185 4893 Core 3244 | . 111 109 119 . . . 23 125 45 24 27 110 . 188 69 72 50 54 . 82 6 31 93 134 . 22 37 33 35 36 34 21 326 1228 Absorbed by Shields 8122 | . . . . . . . . 19 . 5 . 9 . 240 . 60 196 346 . 475 309 460 740 75 11 180 113 258 224 916 527 532 652 1775 Reduced by Siege Mode 252 | . . . . . . . . . . . . . . . . . 107 . . 6 . 6 23 110 . . . . . . . . . . Regen/Repaired (Parts) 4817 | . 125 . 245 . . . 323 . 122 . . 34 352 . 85 . 331 95 18 283 . . 125 . 16 37 . . . . 89 47 1565 925 Core Remaining (%) 71 | 100 . 12 . . . 70 . . . 60 . . . . . 33 . 87 . . . . . 65 . 98 . 94 . 95 . . . . Volleys Fired 2085 | . 75 27 82 8 . 9 49 92 53 43 25 62 29 47 35 54 44 46 15 103 45 93 121 66 22 35 54 91 46 105 82 87 192 148 Largest 2 | . 2 2 2 2 . 2 2 2 2 2 1 2 2 2 1 2 2 2 1 1 1 1 1 1 1 1 1 1 1 1 1 1 2 1 Hottest 214 | . 70 40 150 150 . 150 150 150 150 150 120 150 150 150 85 120 120 70 35 105 40 94 94 120 120 120 120 120 120 120 120 120 214 120 Shots Fired 2538 | . 150 41 163 13 . 18 91 162 99 47 25 71 43 71 35 84 64 52 15 103 45 93 120 65 22 35 54 91 46 107 83 87 194 149 Gun 206 | . 150 30 26 . . . . . . . . . . . . . . . . . . . . . . . . . . . . . . . Cannon 1628 | . . . 137 10 . 16 91 151 93 44 10 41 32 48 11 62 47 18 1 73 31 57 93 34 6 16 41 51 18 82 51 34 151 78 Launcher 82 | . . 11 . 3 . 2 . 11 2 3 . . . 9 12 12 . 2 . 2 5 . 1 . . . . . . 7 . . . . Special 622 | . . . . . . . . . 4 . 15 30 11 14 12 10 17 32 14 28 9 36 26 31 16 19 13 40 28 18 32 53 43 71 Kinetic 183 | . 124 30 26 . . . . . . . . . . . . . . . . . . . . . . . . . . . . . . 3 Thermal 1439 | . 26 . 137 10 . 16 91 151 93 44 10 41 32 48 11 62 47 18 1 73 31 45 69 34 6 16 23 51 18 82 16 29 58 50 Explosive 69 | . . 11 . 3 . 2 . 11 2 3 . . . 9 12 12 . 2 . 2 . . . . . . . . . . . . . . Electromagnetic 225 | . . . . . . . . . . . . . . . . . . . . . 5 12 25 . . . 18 . . 7 35 5 93 25 Robot Hit Streak 33 | . 7 8 9 7 . 10 14 21 10 17 24 33 11 9 10 10 23 21 5 9 6 21 11 20 9 12 11 13 8 10 10 18 16 20 Robot Miss Streak 7 | . 3 2 5 3 . 1 3 2 4 . 2 2 1 2 3 3 2 2 1 3 4 2 7 1 3 1 2 3 2 4 5 3 5 7 Penetration Max . | . . . . . . . . . . . . . . . . . . . . . . . . . . . . . . . . . . . Secondary Targets 3 | . 1 2 . . . . . . . . . . . . . . . . . . . . . . . . . . . . . . . . Max Gunslinging Chain 1 | . 1 1 . . . . . . . . . . . . . . . . . . . . . . . . . . . . . . . . Capacitor 805 | . . . . . . . . . . . . . . . . . . . 1 73 31 57 93 34 4 16 41 51 18 82 51 34 149 70 Shots Hit Robots 1597 | . 92 21 86 8 . 13 52 101 55 8 18 67 33 39 18 53 48 36 11 65 25 66 76 49 11 23 41 53 35 63 55 60 117 99 Core Hits 690 | . 39 24 47 10 . 7 21 50 26 20 7 24 9 31 53 49 10 10 1 35 13 14 30 15 . 4 11 10 3 31 17 10 41 18 Critical Kills 10 | . 1 . . . . . . 1 1 . . . . . . . 1 . . . . . 1 . . . . 3 . 1 . . 1 . Critical Parts Destroyed 1 | . 1 . . . . . . . . . . . . . . . . . . . . . . . . . . . . . . . . . Critical Strikes 18 | . 3 . . . . . . 1 1 . . 3 . . . . 1 . . . . . 2 . . . . 3 . 1 . 2 1 . Burn 1 | . 1 . . . . . . . . . . . . . . . . . . . . . . . . . . . . . . . . . Meltdown 9 | . . . . . . . . 1 1 . . . . . . . 1 . . . . . 1 . . . . 3 . 1 . . 1 . Destroy 2 | . 2 . . . . . . . . . . . . . . . . . . . . . . . . . . . . . . . . . Corrupt 3 | . . . . . . . . . . . . . . . . . . . . . . . 1 . . . . . . . . 2 . . Sever 3 | . . . . . . . . . . . . 3 . . . . . . . . . . . . . . . . . . . . . . Melee Attacks 37 | . . . . . . . . . . 10 2 25 . . . . . . . . . . . . . . . . . . . . . . Impact . | . . . . . . . . . . . . . . . . . . . . . . . . . . . . . . . . . . . Slashing 37 | . . . . . . . . . . 10 2 25 . . . . . . . . . . . . . . . . . . . . . . Piercing . | . . . . . . . . . . . . . . . . . . . . . . . . . . . . . . . . . . . Sneak Attacks . | . . . . . . . . . . . . . . . . . . . . . . . . . . . . . . . . . . . Combat Hostiles . | . . . . . . . . . . . . . . . . . . . . . . . . . . . . . . . . . . . Follow-up Attacks . | . . . . . . . . . . . . . . . . . . . . . . . . . . . . . . . . . . . Damage Inflicted 49756 | 2 1057 697 1780 440 . 509 1351 4018 1882 1262 352 2037 720 1654 3094 3165 1270 773 28 2124 796 1504 2533 1116 . 556 1469 1144 489 3152 1503 1083 4104 2092 Guns 1454 | . 1028 230 196 . . . . . . . . . . . . . . . . . . . . . . . . . . . . . . . Cannons 34920 | . . . 1534 150 . 300 1307 2524 1470 961 319 942 678 670 129 1213 1244 300 . 1509 603 1474 2156 1099 . 556 1351 1144 472 2237 1443 1038 4050 2047 Explosions 11301 | . . 454 . 268 . 204 . 1488 356 286 . . . 975 2920 1952 . 473 . 561 193 . 237 . . . 98 . . 836 . . . . Melee 1085 | . . . . . . . . . . . . 1085 . . . . . . . . . . . . . . . . . . . . . . Ramming 996 | 2 29 13 50 22 . 5 44 6 56 15 33 10 42 9 45 . 26 . 28 54 . 30 140 17 . . 20 . 17 79 60 45 54 45 Kinetic 1341 | . 842 230 196 . . . . . . . . . . . . . . . . . . . . . . . . . . . . . . 73 Thermal 29062 | . 186 . 1534 150 . 300 1307 2524 1470 961 319 942 678 670 129 1213 1244 300 . 1509 603 1061 1541 1099 . 556 882 1144 472 2237 486 822 1467 1256 Explosive 9937 | . . 454 . 268 . 204 . 1488 356 286 . . . 975 2920 1952 . 473 . 561 . . . . . . . . . . . . . . Electromagnetic 7335 | . . . . . . . . . . . . . . . . . . . . . 193 413 852 . . . 567 . . 836 957 216 2583 718 Impact . | . . . . . . . . . . . . . . . . . . . . . . . . . . . . . . . . . . . Slashing 1085 | . . . . . . . . . . . . 1085 . . . . . . . . . . . . . . . . . . . . . . Piercing . | . . . . . . . . . . . . . . . . . . . . . . . . . . . . . . . . . . . Highest Corruption 45 | . 4 4 4 4 4 4 . 6 6 7 1 3 3 5 7 10 2 2 . 1 5 9 12 21 . . . 1 4 4 3 4 14 45 Average Corruption 5 | . 1 4 4 4 4 4 . 5 6 6 1 1 3 4 5 9 2 2 . 1 3 7 9 19 . . . 1 3 1 2 3 8 19 Corruption Purged 9 | . . . . . . . . . . . . . . . . . . . . . . . . . . . . . . 9 . . . . Corruption Blocked . | . . . . . . . . . . . . . . . . . . . . . . . . . . . . . . . . . . . Effects 746 | . 11 37 25 30 11 19 . 7 48 38 2 19 24 33 42 43 12 12 . 10 21 45 38 49 . . . 6 4 6 4 32 59 59 Message Errors 195 | . 4 7 7 3 1 3 . 1 15 11 . 8 9 5 11 10 1 7 . 4 4 10 11 10 . . . 2 1 1 . 10 17 22 Matter Fused 177 | . 5 6 4 8 1 8 . 3 12 8 . 3 3 10 16 7 3 4 . 1 7 9 14 12 . . . . . 1 . 8 13 11 Heat Flow Errors 85 | . . 1 4 6 1 2 . 1 7 3 . 2 5 3 1 2 3 . . 1 3 7 2 7 . . . 2 2 . . 5 8 7 Energy Discharges 89 | . 1 8 2 7 4 2 . 1 6 5 1 1 1 7 3 7 3 . . 2 4 5 3 7 . . . 1 . . 2 2 2 2 Parts Rejected 9 | . . 1 . . . . . . 1 1 . . . 1 . . . . . . . . 1 . . . . 1 . 1 . . . 2 Parts Fused 13 | . . 2 1 . . . . . 1 2 . . . . 1 1 . . . . . 1 . . . . . . . . . 1 3 . Data Loss (minor) 85 | . 1 5 5 6 3 4 . . 3 4 . 3 3 . 5 5 1 . . 1 1 6 1 6 . . . . 1 1 1 3 8 8 Data Loss (major) 35 | . . 3 1 . 1 . . . . 2 1 . 2 2 3 2 1 . . 1 . 3 1 3 . . . . . . . 3 3 3 Misfires 27 | . . . . . . . . . 3 1 . . 1 5 1 4 . 1 . . 1 2 2 . . . . . . 2 1 . 1 2 Alerts 9 | . . 2 . . . . . . . . . 2 . . . 3 . . . . . . . 1 . . . . . . . . 1 . Misdirections 6 | . . . . . . . . . . . . . . . . . . . . . . . . 2 . . . . . . . . 3 1 Weapon Failures 16 | . . 2 1 . . . . 1 . 1 . . . . 1 2 . . . . 1 2 3 1 . . . . . . . . . 1 Overload Shots 3 | . . . . . . . . . . . . . . . . . . . . 3 . . . . . . . . . . . . . . Overflow Damage 1398 | . . 22 5 . . . 5 101 17 73 8 39 4 39 86 115 1 43 . 15 19 70 66 22 . . 15 91 57 206 86 . 88 105 Projectiles 1060 | . . . 4 . . . 5 89 . 73 . 39 4 14 18 70 1 . . 15 . 70 58 22 . . . 91 57 162 78 . 85 105 Explosions 285 | . . 22 . . . . . 12 17 . . . . 25 64 45 . 43 . . 19 . . . . . 15 . . 23 . . . . Melee 53 | . . . 1 . . . . . . . 8 . . . 4 . . . . . . . 8 . . . . . . 21 8 . 3 . Knockbacks 4 | . . . . . . . . . . . . . 1 . . . . . . . . . 1 . . . 1 . . . . . . 1 Impact 4 | . . . . . . . . . . . . . 1 . . . . . . . . . 1 . . . 1 . . . . . . 1 Kinetic . | . . . . . . . . . . . . . . . . . . . . . . . . . . . . . . . . . . . Secondary . | . . . . . . . . . . . . . . . . . . . . . . . . . . . . . . . . . . . Self-Inflicted Damage 526 | . . 78 . 45 . . . 178 . 6 . . . 89 42 . . . . 61 . . . . . . . . . 27 . . . . Shots 18 | . . 3 . 2 . . . 4 . 1 . . . 2 1 . . . . 2 . . . . . . . . . 3 . . . . Rammed 68 | 1 8 3 5 2 . 1 5 2 2 1 1 1 2 1 2 . 1 . 1 3 . 2 5 . . . 1 . 1 4 3 3 4 3 Targets Rammed 78 | 1 8 4 5 3 . 1 5 2 5 1 1 1 3 1 2 . 1 . 2 4 . 2 5 1 . . 1 . 1 4 3 3 4 4 Kicked 1 | . . . . . . . . . . . . . . . . . . . . . . . . . . . . . . . . . . 1 Crushed 9 | . . 1 . 1 . . . . 3 . . . 1 . . . . . 1 1 . . . 1 . . . . . . . . . . Highest Temperature 444 | . 216 216 324 375 94 236 312 444 302 280 152 344 239 336 255 154 395 54 . 264 237 223 35 250 322 352 349 328 363 329 207 364 395 348 Average Temperature 89 | . 75 90 84 124 59 98 85 131 77 84 59 118 71 98 68 28 142 16 . 61 102 58 26 105 39 24 108 110 141 125 69 121 106 98 Received Heat Transfer 2912 | . 330 179 195 . . . 144 325 198 36 69 223 78 146 90 17 122 92 18 130 21 89 12 17 9 28 58 14 12 52 56 32 83 37 Effects 25 | . . . . . . . . 8 . . . 1 . 1 . . 1 . . . . . . . 2 . . 1 1 5 . 2 2 1 Shutdowns 2 | . . . . . . . . . . . . . . . . . . . . . . . . . . . . . . 1 . . 1 . Energy Bleed 12 | . . . . . . . . 4 . . . 1 . 1 . . 1 . . . . . . . . . . 1 1 2 . . 1 . Interference 10 | . . . . . . . . 3 . . . . . . . . . . . . . . . . 2 . . . . 2 . 2 . 1 Matter Decay 1 | . . . . . . . . 1 . . . . . . . . . . . . . . . . . . . . . . . . . . Siege Activations 6 | . . . . . . . . . . . . . . . . . 1 . . 1 . 1 2 1 . . . . . . . . . . Total Turns 136 | . . . . . . . . . . . . . . . . . 50 . . 8 . 16 26 36 . . . . . . . . . . Longest Duration 50 | . . . . . . . . . . . . . . . . . 50 . . 8 . 16 18 36 . . . . . . . . . . Martial Activations . | . . . . . . . . . . . . . . . . . . . . . . . . . . . . . . . . . . . Shielding Activations . | . . . . . . . . . . . . . . . . . . . . . . . . . . . . . . . . . . . Robots Disrupted . | . . . . . . . . . . . . . . . . . . . . . . . . . . . . . . . . . . . Combat Hostiles . | . . . . . . . . . . . . . . . . . . . . . . . . . . . . . . . . . . . Robots Corrupted 32 | . . . 1 . . . . . . . 1 . . . 1 . . . . . 1 1 2 . . . 2 . . 4 3 1 11 4 Combat Hostiles 27 | . . . . . . . . . . . . . . . . . . . . . 1 1 1 . . . 2 . . 4 3 1 10 4 Parts Fried 63 | . . . 4 . . . . . . . 2 . . . . . . . . . 1 1 10 . . . 6 . . . 5 1 26 7 Impact Corruptions 8 | . . . 1 . . . . . . . 1 . . . 1 . . . . . . . 1 . . . . . . 2 1 . 1 . Robots Melted 13 | . . . . . . 1 1 1 1 1 . . . . . . 1 . . . 1 . 1 . . . . 3 . 1 . . 1 . Combat Hostiles 12 | . . . . . . 1 1 1 1 1 . . . . . . . . . . 1 . 1 . . . . 3 . 1 . . 1 . Parts Melted 92 | . 2 . 5 . . 3 3 8 7 7 . 5 1 2 . 3 6 2 . 9 1 4 8 3 . . . 3 . 3 2 . 5 . Heat Transferred 36725 | . 629 . 2664 222 . 444 1887 3478 2146 1914 677 1689 888 851 148 1566 1579 450 . 2350 950 1475 2148 1043 . 407 766 962 370 1887 370 647 1165 953 Parts Sabotaged . | . . . . . . . . . . . . . . . . . . . . . . . . . . . . . . . . . . . Parts Stolen . | . . . . . . . . . . . . . . . . . . . . . . . . . . . . . . . . . . . Parts Stripped . | . . . . . . . . . . . . . . . . . . . . . . . . . . . . . . . . . . . Power Chain Reactions 1 | . . . . . . . . . . . . . . . . . . . . . . . . . . . 1 . . . . . . . Alert | -11 -10 -10 -9 -9 -9 -8 -8 -8 -8 -8 -7 -7 -7 -7 -7 -7 -6 -6 -5 -5 -5 -5 -5 -5 -4 -4 -3 -3 -2 -2 -1 -1 -1 -1 ------- Run | Yrd Mat Min Mat Min Exi Min Mat Gar Mat Gar Fac Gar Fac Gar Fac Gar Fac Gar Fac Gar Fac Gar Fac Gar Fac Gar Res Gar Res Gar Acc Gar Acc Com Maximum Alert Level 4 | . . . 2 . . . . 4 2 2 1 3 1 2 1 2 1 4 2 3 2 2 3 4 3 3 2 2 2 3 2 4 4 3 Low Security (%) 45 | 100 100 100 41 100 . 100 100 10 84 27 76 36 71 29 92 15 81 35 57 19 20 22 . . 28 6 66 12 31 3 . . . 21 Level 1 15 | . . . 42 . . . . 12 7 4 23 5 28 50 7 22 18 15 . 19 26 17 14 . 11 20 2 44 46 31 1 . 11 24 Level 2 21 | . . . 16 . . . . 18 8 67 . 51 . 20 . 61 . 6 42 34 52 60 28 15 34 40 31 42 22 21 98 20 10 . Level 3 13 | . . . . . . . . 39 . . . 5 . . . . . 31 . 27 . . 57 45 25 32 . . . 44 . 45 35 54 Level 4 4 | . . . . . . . . 18 . . . . . . . . . 11 . . . . . 39 . . . . . . . 33 42 . Level 5 . | . . . . . . . . . . . . . . . . . . . . . . . . . . . . . . . . . . . High Security . | . . . . . . . . . . . . . . . . . . . . . . . . . . . . . . . . . . . Max Security . | . . . . . . . . . . . . . . . . . . . . . . . . . . . . . . . . . . . Peak Influence 1529 | . 135 105 478 113 . 100 106 1435 699 657 350 715 375 512 270 543 284 1288 676 937 578 665 937 1255 747 953 535 604 449 837 559 1220 1529 976 Initial 976 | . . 6 4 113 . . . . 699 . 344 . 375 57 268 . 284 . 676 70 491 113 348 655 658 199 535 30 339 147 477 402 732 976 Average 354 | . 60 26 209 11 . 18 32 716 102 395 85 358 92 288 50 368 102 532 329 493 357 404 659 1012 485 598 186 365 262 573 501 940 978 550 Influence Increases 23476 | . 554 344 970 48 . 202 479 1455 503 657 199 985 389 695 525 573 132 1408 239 1241 623 742 1297 700 355 944 298 844 622 960 606 1038 2356 493 Destroy 0b10 Robot/C 10101 | . 280 240 640 20 . 100 220 680 260 360 112 496 216 336 204 324 42 570 90 510 285 330 510 366 120 360 108 348 168 296 230 360 750 170 Destroy 0b10 Robot/NC 636 | . 40 15 60 5 . 10 35 . 55 . 4 28 8 . 68 4 20 . 8 4 16 . 40 . 9 9 6 . 21 . 45 . 117 9 Destroy Leader 1708 | . 76 30 178 10 . 30 82 40 82 30 32 32 77 35 64 49 23 48 10 48 40 48 116 48 32 18 18 30 46 36 50 60 154 36 Allied During Kill 4492 | . . . . 1 . . . . . . 6 167 54 54 88 8 . 522 106 139 145 94 186 111 121 383 75 163 235 276 130 409 915 104 Trap Triggered on 0b10 10 | . 10 . . . . . . . . . . . . . . . . . . . . . . . . . . . . . . . . . Successful Hack 367 | . 13 . 35 . . . 33 10 14 12 18 14 28 5 33 . 14 18 23 11 5 11 2 11 9 16 16 4 . 8 . 4 . . Select Force Hacks 143 | . 60 . 30 . . . 30 . . . . . . . . . . . . . . . 23 . . . . . . . . . . . Disable Machine 634 | . . . . . . 30 15 60 45 15 . . . 20 20 10 . . . 12 96 . 204 . 18 . 9 . . . 8 8 48 16 Anti-Garrison Action 2955 | . . . . . . . . 500 . 150 . 193 . 184 . 124 . 227 . 379 . 227 . 106 . 120 . 210 90 220 75 150 . . Destroy Structure 1861 | . . 59 12 12 . 32 34 90 47 90 3 43 6 41 38 34 21 23 2 18 36 20 168 22 46 38 66 80 62 97 52 47 364 158 Partial Spotted 27 | . 15 . . . . . . . . . . . . . . . 12 . . . . . . . . . . . . . . . . . Lose Combat Pursuer 542 | . 60 . 15 . . . 30 75 . . 24 12 . 20 10 20 . . . 120 . 12 48 36 . . . 9 . 27 16 . 8 . Influence Decreases 23476 | . 538 348 691 339 . 202 479 20 1938 . 856 270 1022 265 1037 30 675 120 1426 405 1398 239 1025 382 1325 276 1211 280 1029 360 900 321 2050 2019 Entered New Map 6735 | . . 10 8 178 . . . . 736 . 313 . 340 25 244 . 259 . 612 31 446 49 317 282 597 86 418 10 265 50 320 101 488 550 Time Decay 7293 | . 518 337 523 161 . 202 372 . 467 . 238 . 355 . 421 . 356 . 294 . 392 . 458 . 278 . 263 . 238 . 380 . 562 478 Lost Part 597 | . 20 1 10 . . . 10 20 . . . . . 30 30 10 20 . . 10 . 10 30 60 . . 10 . . 10 . 20 50 246 Lost Ally 3909 | . . . . . . . . . 10 . 30 270 81 210 68 20 40 120 20 364 110 180 220 40 . 190 70 270 76 300 200 200 450 370 Purge Threat 4942 | . . . 150 . . . 97 . 725 . 275 . 246 . 274 . . . 500 . 450 . . . 450 . 450 . 450 . . . 500 375 Squads Dispatched 86 | . 4 . 2 . . . 4 . 1 . 3 . 10 . 8 . 2 . 3 . 2 . 6 . 2 . 1 . 6 . 10 . 17 5 Investigation 13 | . 3 . 2 . . . 2 . 1 . 1 . 1 . 2 . . . . . . . 1 . . . . . . . . . . . Extermination 24 | . . . . . . . . . . . 1 . 3 . 4 . 1 . 1 . 1 . 2 . . . 1 . 1 . 1 . 5 3 Reinforcement 27 | . 1 . . . . . 2 . . . . . . . 2 . 1 . 2 . . . 2 . 1 . . . 2 . 3 . 10 1 Assault 9 | . . . . . . . . . . . . . . . . . . . . . 1 . 1 . . . . . 2 . 2 . 2 1 Garrison 13 | . . . . . . . . . . . 1 . 6 . . . . . . . . . . . 1 . . . 1 . 4 . . . Intercept . | . . . . . . . . . . . . . . . . . . . . . . . . . . . . . . . . . . . Searches Triggered . | . . . . . . . . . . . . . . . . . . . . . . . . . . . . . . . . . . . Unchained Authorized 4 | . . . . . . . . . . . . . . . . . . . . . 1 . 1 . 1 . . . 1 . . . . . Construction Impeded 2 | . . . . . . . . . . . . . . . 1 . . . . . . . . . . . . . . . . . 1 . Haulers Reinforced 4 | . . . . . . . . . . . . . . . . . . . 1 . . . 1 . . . . . . . . . 2 . Active Scanning Responses . | . . . . . . . . . . . . . . . . . . . . . . . . . . . . . . . . . . . Cargo Convoy Interrupts 1 | . . . . . . . . . . . . . . . 1 . . . . . . . . . . . . . . . . . . . Stealth | -11 -10 -10 -9 -9 -9 -8 -8 -8 -8 -8 -7 -7 -7 -7 -7 -7 -6 -6 -5 -5 -5 -5 -5 -5 -4 -4 -3 -3 -2 -2 -1 -1 -1 -1 --------- Run | Yrd Mat Min Mat Min Exi Min Mat Gar Mat Gar Fac Gar Fac Gar Fac Gar Fac Gar Fac Gar Fac Gar Fac Gar Fac Gar Res Gar Res Gar Acc Gar Acc Com Distress Signals 30 | . 1 . 7 . . . 2 . 3 . 2 . . . 3 . 1 . . 1 1 . 3 . . 1 . . . . 1 . 4 . Communications Jammed 808 | . . . . . . . . . . . . . . . 2 . 9 . 1 27 1 . 27 . . 32 . . 150 . 161 . 328 70 Distress Signals 806 | . . . . . . . . . . . . . . . 2 . 9 . 1 27 1 . 27 . . 32 . . 148 . 161 . 328 70 Times Spotted 1126 | . 28 14 45 9 . 5 18 38 24 8 19 51 24 39 33 40 17 41 7 58 21 35 52 42 11 30 12 43 25 86 55 67 87 42 Peak Tracking Total 15 | . 4 3 5 3 . 3 3 5 5 4 4 9 4 6 12 5 4 5 2 8 6 4 6 15 2 4 2 7 6 12 9 11 7 10 Tactical Retreats 34 | . 3 . 1 . . . 1 5 . . 2 1 . 2 1 1 . . . 5 . 1 2 1 . . . 1 . 5 1 . 1 . Traps | -11 -10 -10 -9 -9 -9 -8 -8 -8 -8 -8 -7 -7 -7 -7 -7 -7 -6 -6 -5 -5 -5 -5 -5 -5 -4 -4 -3 -3 -2 -2 -1 -1 -1 -1 ------- Run | Yrd Mat Min Mat Min Exi Min Mat Gar Mat Gar Fac Gar Fac Gar Fac Gar Fac Gar Fac Gar Fac Gar Fac Gar Fac Gar Res Gar Res Gar Acc Gar Acc Com Traps Triggered 60 | . 2 . 6 . . . 3 5 . 3 . 1 1 2 1 1 2 5 . 5 3 5 1 1 . 5 . . 1 . . 4 1 2 Indirectly . | . . . . . . . . . . . . . . . . . . . . . . . . . . . . . . . . . . . Trap Hack Attempts 64 | . 14 . 50 . . . . . . . . . . . . . . . . . . . . . . . . . . . . . . . Triggered . | . . . . . . . . . . . . . . . . . . . . . . . . . . . . . . . . . . . Disarmed . | . . . . . . . . . . . . . . . . . . . . . . . . . . . . . . . . . . . Reprogrammed 6 | . 2 . 4 . . . . . . . . . . . . . . . . . . . . . . . . . . . . . . . Reused 1 | . 1 . . . . . . . . . . . . . . . . . . . . . . . . . . . . . . . . . Traps Extracted . | . . . . . . . . . . . . . . . . . . . . . . . . . . . . . . . . . . . Installed . | . . . . . . . . . . . . . . . . . . . . . . . . . . . . . . . . . . . Triggered 1 | . 1 . . . . . . . . . . . . . . . . . . . . . . . . . . . . . . . . . Machines | -11 -10 -10 -9 -9 -9 -8 -8 -8 -8 -8 -7 -7 -7 -7 -7 -7 -6 -6 -5 -5 -5 -5 -5 -5 -4 -4 -3 -3 -2 -2 -1 -1 -1 -1 ---------- Run | Yrd Mat Min Mat Min Exi Min Mat Gar Mat Gar Fac Gar Fac Gar Fac Gar Fac Gar Fac Gar Fac Gar Fac Gar Fac Gar Res Gar Res Gar Acc Gar Acc Com Machines Disabled 110 | . . . . . . 2 1 10 3 2 . 3 . 6 2 5 . 3 . 9 8 4 17 3 2 3 1 6 1 3 2 6 6 2 Max in Single Turn 2 | . . . . . . 2 1 2 1 1 . 1 . 1 1 1 . 1 . 1 2 1 2 1 1 1 1 1 . 1 . 1 1 . Garrison Access 4 | . . . . . . . . . . . . . 1 . . . . . . . 1 . . . . . . . 1 . 1 . . . Garrison Relay 53 | . . . . . . . . 7 . 1 . 4 . 4 . 4 . 3 . 8 . 4 . 3 . 3 . 5 . 3 . 4 . . Energy Cycler 1 | . . . . . . . . . . . . . . . . . . . . . . . . . . . . . . . . . 1 . Machines Repaired . | . . . . . . . . . . . . . . . . . . . . . . . . . . . . . . . . . . . Machines Dismantled . | . . . . . . . . . . . . . . . . . . . . . . . . . . . . . . . . . . . Machines Sabotaged . | . . . . . . . . . . . . . . . . . . . . . . . . . . . . . . . . . . . Overloaded Fab Kills . | . . . . . . . . . . . . . . . . . . . . . . . . . . . . . . . . . . . Hacking | -11 -10 -10 -9 -9 -9 -8 -8 -8 -8 -8 -7 -7 -7 -7 -7 -7 -6 -6 -5 -5 -5 -5 -5 -5 -4 -4 -3 -3 -2 -2 -1 -1 -1 -1 --------- Run | Yrd Mat Min Mat Min Exi Min Mat Gar Mat Gar Fac Gar Fac Gar Fac Gar Fac Gar Fac Gar Fac Gar Fac Gar Fac Gar Res Gar Res Gar Acc Gar Acc Com Machines Accessed 133 | . 10 . 12 . 2 . 14 2 8 1 6 3 10 1 10 2 8 3 2 3 6 2 3 2 5 2 4 2 2 3 1 2 . 2 Terminals 86 | . 7 . 9 . . . 10 2 5 1 4 3 3 1 5 2 4 3 1 3 3 2 1 2 4 2 1 2 . 3 . 2 . 1 Fabricators 4 | . . . . . . . . . . . . . 1 . 2 . 1 . . . . . . . . . . . . . . . . . Repair Stations 13 | . 1 . 1 . . . 1 . 1 . . . 2 . 2 . 1 . . . 1 . 1 . . . 1 . . . . . . 1 Recycling Units 4 | . 2 . 1 . . . 1 . . . . . . . . . . . . . . . . . . . . . . . . . . . Scanalyzers 9 | . . . 1 . . . 1 . 1 . 1 . 2 . . . 1 . . . . . . . . . 1 . 1 . . . . . Garrison Access 15 | . . . . . . . 1 . 1 . 1 . 2 . 1 . 1 . 1 . 2 . 1 . 1 . 1 . 1 . 1 . . . Total Hacks 331 | . 26 . 39 . 2 . 48 4 22 1 12 5 35 1 29 3 19 5 4 6 16 3 8 2 8 6 6 3 4 5 2 3 . 4 Successful 173 | . 8 . 22 . 2 . 35 2 9 1 6 3 20 1 14 1 7 3 4 2 8 1 4 1 5 2 5 1 2 1 2 1 . . Failed 156 | . 18 . 17 . . . 12 2 13 . 5 2 15 . 15 2 12 2 . 4 8 2 4 1 3 4 1 2 2 4 . 2 . 4 Catastrophic 30 | . 2 . 4 . . . 1 1 1 . 3 1 2 . 1 . 2 1 . 1 2 2 . 1 . 2 . 1 1 . . 1 . . Database Lockouts 2 | . . . . . . . 1 . . . 1 . . . . . . . . . . . . . . . . . . . . . . . Manual 164 | . 24 . 23 . 1 . 24 1 16 . 7 . 10 . 18 . 14 . 1 . 7 1 4 . 5 2 2 . . . . . . 4 Terminals 212 | . 21 . 29 . . . 32 4 17 1 9 5 9 1 14 3 9 5 2 6 11 3 2 2 6 6 2 3 . 5 . 3 . 2 Fabricators 10 | . . . . . . . . . . . . . 3 . 5 . 2 . . . . . . . . . . . . . . . . . Repair Stations 45 | . 3 . 6 . . . 7 . 2 . . . 13 . 6 . 2 . . . 1 . 2 . . . 1 . . . . . . 2 Recycling Units 5 | . 2 . 1 . . . 2 . . . . . . . . . . . . . . . . . . . . . . . . . . . Scanalyzers 23 | . . . 3 . . . 5 . 2 . 2 . 3 . . . 4 . . . . . . . . . 2 . 2 . . . . . Garrison Access 34 | . . . . . . . 2 . 1 . 1 . 7 . 4 . 2 . 2 . 4 . 4 . 2 . 1 . 2 . 2 . . . Terminal Hacks 60 | . 2 . 7 . 2 . 8 2 4 1 2 3 4 1 5 1 1 3 1 2 3 1 . 1 1 2 . 1 . 1 . 1 . . Record 1 | . . . . . 1 . . . . . . . . . . . . . . . . . . . . . . . . . . . . . Robot Schematic 2 | . 1 . . . . . . . . . . . . . . . 1 . . . . . . . . . . . . . . . . . Robot Analysis 1 | . . . 1 . . . . . . . . . . . . . . . . . . . . . . . . . . . . . . . Prototype ID Bank 6 | . 1 . 2 . . . 1 . . . . . . . 1 . . . 1 . . . . . . . . . . . . . . . Open Door 5 | . . . . . . . . . . . . 1 . 1 . . . 1 . . . . . . . . . 1 . . . 1 . . Branch Access Points 1 | . . . 1 . . . . . . . . . . . . . . . . . . . . . . . . . . . . . . . Emergency Access Points 7 | . . . . . . . . 1 . 1 . 1 . . . 1 . . . 1 . 1 . . . 1 . . . . . . . . Terminal Index 5 | . . . . . . . 1 . 1 . 1 . 1 . 1 . . . . . . . . . . . . . . . . . . . Alert Level 2 | . . . 2 . . . . . . . . . . . . . . . . . . . . . . . . . . . . . . . Unreport Threat 12 | . . . 1 . . . 2 . 3 . . . 2 . 1 . . . . . 3 . . . . . . . . . . . . . Locate Traps 2 | . . . . . . . . . . . . . . . 2 . . . . . . . . . . . . . . . . . . . Hauler Manifests 3 | . . . . . . . 1 . . . . . 1 . . . . . . . . . . . 1 . . . . . . . . . Registered Components 2 | . . . . . . . 1 . . . 1 . . . . . . . . . . . . . . . . . . . . . . . Zone Layout 2 | . . . . . . . 2 . . . . . . . . . . . . . . . . . . . . . . . . . . . Garrison Registry 4 | . . . . . . . . . . . . . . . . . . 1 . 1 . . . 1 . 1 . . . . . . . . Patrol Navigation 1 | . . . . . . . . 1 . . . . . . . . . . . . . . . . . . . . . . . . . . Security Stations 3 | . . . . . . . . . . . . 1 . . . . . 1 . . . . . . . . . . . 1 . . . . Proto ID Catalog 1 | . . . . . 1 . . . . . . . . . . . . . . . . . . . . . . . . . . . . . Fabricator Hacks 3 | . . . . . . . . . . . . . . . 3 . . . . . . . . . . . . . . . . . . . Load Schematic 2 | . . . . . . . . . . . . . . . 2 . . . . . . . . . . . . . . . . . . . Build 1 | . . . . . . . . . . . . . . . 1 . . . . . . . . . . . . . . . . . . . Repair Station Hacks 22 | . 2 . 6 . . . 6 . . . . . 7 . . . . . . . . . 1 . . . . . . . . . . . Scan Component 12 | . 1 . 3 . . . 3 . . . . . 4 . . . . . . . . . 1 . . . . . . . . . . . Repair 10 | . 1 . 3 . . . 3 . . . . . 3 . . . . . . . . . . . . . . . . . . . . . Recycling Unit Hacks . | . . . . . . . . . . . . . . . . . . . . . . . . . . . . . . . . . . . Scanalyzer 13 | . . . 1 . . . 4 . 1 . 1 . 3 . . . 1 . . . . . . . . . 2 . . . . . . . Retrieve Study 13 | . . . 1 . . . 4 . 1 . 1 . 3 . . . 1 . . . . . . . . . 2 . . . . . . . Garrison Access Hacks 27 | . . . . . . . 2 . 1 . 1 . 4 . 2 . 2 . 2 . 4 . 2 . 2 . 1 . 2 . 2 . . . Unlock Access 13 | . . . . . . . 1 . 1 . 1 . 1 . 1 . 1 . 1 . 1 . 1 . 1 . 1 . 1 . 1 . . . Seal Access 2 | . . . . . . . . . . . . . 1 . . . . . . . 1 . . . . . . . . . . . . . Coupler Status 12 | . . . . . . . 1 . . . . . 2 . 1 . 1 . 1 . 2 . 1 . 1 . . . 1 . 1 . . . Unauthorized Hacks 47 | . 4 . 8 . . . 14 . 3 . 2 . 2 . 4 . 3 . 1 . 1 . 1 . 2 . 2 . . . . . . . Terminals 35 | . 2 . 7 . . . 13 . 2 . 2 . 1 . 2 . 1 . 1 . 1 . . . 2 . 1 . . . . . . . Assimilate 6 | . . . . . . . 5 . 1 . . . . . . . . . . . . . . . . . . . . . . . . . Botnet 6 | . . . 1 . . . 2 . . . 1 . . . 1 . . . . . . . . . 1 . . . . . . . . . Operators 11 | . . . 1 . . . 1 . 1 . 1 . 1 . 1 . 1 . 1 . 1 . . . 1 . 1 . . . . . . . Skim 12 | . 2 . 5 . . . 5 . . . . . . . . . . . . . . . . . . . . . . . . . . . Fabricators 3 | . . . . . . . . . . . . . 1 . 1 . 1 . . . . . . . . . . . . . . . . . Liberate 1 | . . . . . . . . . . . . . . . . . 1 . . . . . . . . . . . . . . . . . Haulers 1 | . . . . . . . . . . . . . 1 . . . . . . . . . . . . . . . . . . . . . Recompile 1 | . . . . . . . . . . . . . . . 1 . . . . . . . . . . . . . . . . . . . Repair Stations 4 | . . . . . . . . . 1 . . . . . 1 . 1 . . . . . . . . . 1 . . . . . . . Mechanics 4 | . . . . . . . . . 1 . . . . . 1 . 1 . . . . . . . . . 1 . . . . . . . Recycling Units 4 | . 2 . 1 . . . 1 . . . . . . . . . . . . . . . . . . . . . . . . . . . Tunnel 4 | . 2 . 1 . . . 1 . . . . . . . . . . . . . . . . . . . . . . . . . . . Scanalyzers . | . . . . . . . . . . . . . . . . . . . . . . . . . . . . . . . . . . . Garrison Access 1 | . . . . . . . . . . . . . . . . . . . . . . . 1 . . . . . . . . . . . Eject 1 | . . . . . . . . . . . . . . . . . . . . . . . 1 . . . . . . . . . . . Data Cores Recovered 1 | . 1 . . . . . . . . . . . . . . . . . . . . . . . . . . . . . . . . . Used . | . . . . . . . . . . . . . . . . . . . . . . . . . . . . . . . . . . . Hacking Detections 109 | . 8 . 11 . . . 11 2 6 . 6 3 7 1 8 2 7 2 2 3 6 2 3 2 4 2 2 1 2 2 1 1 . 2 Full Trace Events 14 | . 5 . 2 . . . . . 1 . . 1 1 . 1 . . 1 . . . . . . . 1 . . . 1 . . . . Feedback Events 1 | . 1 . . . . . . . . . . . . . . . . . . . . . . . . . . . . . . . . . Corruption 1 | . 1 . . . . . . . . . . . . . . . . . . . . . . . . . . . . . . . . . Feedback Blocked . | . . . . . . . . . . . . . . . . . . . . . . . . . . . . . . . . . . . Robot Schematics Acquired 2 | . 1 . . . . . . . . . . . . . . . 1 . . . . . . . . . . . . . . . . . Robots Built 1 | . . . . . . . . . . . . . . . 1 . . . . . . . . . . . . . . . . . . . Authchips 1 | . . . . . . . . . . . . . . . 1 . . . . . . . . . . . . . . . . . . . Time 40 | . . . . . . . . . . . . . . . 40 . . . . . . . . . . . . . . . . . . . Total Robot Build Rating 1 | . . . . . . . . . . . . . . . 1 . . . . . . . . . . . . . . . . . . . Part Schematics Acquired . | . . . . . . . . . . . . . . . . . . . . . . . . . . . . . . . . . . . Parts Built . | . . . . . . . . . . . . . . . . . . . . . . . . . . . . . . . . . . . Authchips . | . . . . . . . . . . . . . . . . . . . . . . . . . . . . . . . . . . . Time . | . . . . . . . . . . . . . . . . . . . . . . . . . . . . . . . . . . . Total Part Build Rating . | . . . . . . . . . . . . . . . . . . . . . . . . . . . . . . . . . . . Part Studies Acquired 11 | . . . 1 . . . 4 . . . 1 . 3 . . . . . . . . . . . . . 2 . . . . . . . Parts Repaired 10 | . 1 . 3 . . . 3 . . . . . 3 . . . . . . . . . . . . . . . . . . . . . Time 387 | . 26 . 78 . . . 127 . . . . . 156 . . . . . . . . . . . . . . . . . . . . . Parts Recycled . | . . . . . . . . . . . . . . . . . . . . . . . . . . . . . . . . . . . Recycled Matter . | . . . . . . . . . . . . . . . . . . . . . . . . . . . . . . . . . . . Retrieved Matter . | . . . . . . . . . . . . . . . . . . . . . . . . . . . . . . . . . . . Retrieved Components . | . . . . . . . . . . . . . . . . . . . . . . . . . . . . . . . . . . . Parts Scanalyzed . | . . . . . . . . . . . . . . . . . . . . . . . . . . . . . . . . . . . Part Schematics Acquired . | . . . . . . . . . . . . . . . . . . . . . . . . . . . . . . . . . . . Parts Damaged . | . . . . . . . . . . . . . . . . . . . . . . . . . . . . . . . . . . . Bothacking | -11 -10 -10 -9 -9 -9 -8 -8 -8 -8 -8 -7 -7 -7 -7 -7 -7 -6 -6 -5 -5 -5 -5 -5 -5 -4 -4 -3 -3 -2 -2 -1 -1 -1 -1 ------------ Run | Yrd Mat Min Mat Min Exi Min Mat Gar Mat Gar Fac Gar Fac Gar Fac Gar Fac Gar Fac Gar Fac Gar Fac Gar Fac Gar Res Gar Res Gar Acc Gar Acc Com Used RIF Installer 17 | . . . . . . . . 1 . 2 . 2 . 1 . 2 . 1 . 1 . 1 . 1 . 1 . 2 . 1 . 1 . . Coupler Efficiency 1 | . . . . . . . . . . 1 . . . . . . . . . . . . . . . . . . . . . . . . Hotswap 1 | . . . . . . . . . . . . . . . . . . 1 . . . . . . . . . . . . . . . . Code Merge 2 | . . . . . . . . . . . . . . . . . . . . 1 . . . . . 1 . . . . . . . . Command Fork 1 | . . . . . . . . . . . . . . . . . . . . . . . . . . . . . . . . 1 . . Threat Obfuscator 3 | . . . . . . . . . . . . 1 . . . . . . . . . . . 1 . . . . . 1 . . . . Signal Jammer 1 | . . . . . . . . . . . . . . 1 . . . . . . . . . . . . . . . . . . . . Robot Detection 1 | . . . . . . . . . . . . . . . . 1 . . . . . . . . . . . . . . . . . . Watcher Feeds 1 | . . . . . . . . . . . . . . . . . . . . . . . . . . . . 1 . . . . . . Patrol Navigation 1 | . . . . . . . . . . 1 . . . . . . . . . . . . . . . . . . . . . . . . Structural Interface 1 | . . . . . . . . . . . . 1 . . . . . . . . . . . . . . . . . . . . . . Program Shield 1 | . . . . . . . . . . . . . . . . 1 . . . . . . . . . . . . . . . . . . Autoassimilate 2 | . . . . . . . . . . . . . . . . . . . . . . 1 . . . . . 1 . . . . . . Robots Hacked 316 | . . . . . . . . . 2 . 6 15 8 8 6 8 9 7 5 18 5 14 15 17 8 14 6 19 13 12 23 34 29 15 Non-combat 57 | . . . . . . . . . 2 . 2 . 1 . 2 . 5 . 3 . 1 1 7 . 4 . 2 . 6 . 5 2 11 3 Combat 259 | . . . . . . . . . . . 4 15 7 8 4 8 4 7 2 18 4 13 8 17 4 14 4 19 7 12 18 32 18 12 Autoassimilated 42 | . . . . . . . . . . . . . . . . . . . . . . 2 . 4 1 2 . 6 2 5 4 11 2 3 Robot Hacks Applied 323 | . . . . . . . . . 3 . 11 16 8 9 9 8 9 7 10 18 6 13 16 13 12 12 11 14 17 8 21 24 33 15 parse_system 10 | . . . . . . . . . . . . . . . . . 1 . . . . 1 1 . . . . . . . 2 2 2 1 generate_anomaly 1 | . . . . . . . . . . . . . . . . . . . . . . . . . . . 1 . . . . . . . find_chute 1 | . . . . . . . . . . . . . . . . . . . . . . . . . 1 . . . . . . . . . find_fabricator 1 | . . . . . . . . . . . . . . . 1 . . . . . . . . . . . . . . . . . . . drop_inventory 18 | . . . . . . . . . . . . . . . 1 . 3 . 1 . 1 . 3 . . . . . 4 . 1 . 4 . purge_threat 30 | . . . . . . . . . 2 . 2 . . . 1 . . . 5 . . . . . 4 . 4 . 4 . . . 5 3 locate_traps 1 | . . . . . . . . . . . . . . . . . . . . . . . . . . . . . . . . . . 1 block_reporting 4 | . . . . . . . . . . . 2 . . . . . . . . . . . . . 1 . 1 . . . . . . . map_route 6 | . . . . . . . . . . . . . . . . . . . . . . . . . . . 1 . . . . . 5 . find_garrison 6 | . . . . . . . . . . . 1 . . . 1 . . . . . . . 1 . . . 1 . 1 . 1 . . . mark_system 1 | . . . . . . . . . . . . . . . . . . . . . . . . . . . . . . 1 . . . . overload_power 3 | . . . . . . . . . . . . . . . . . . . . 1 . . . . 1 . . . . . 1 . . . amplify_resonance 70 | . . . . . . . . . . . 1 5 2 2 2 4 1 2 . 7 1 4 1 6 . 4 . 6 3 2 7 6 4 . reboot_system 1 | . . . . . . . . . . . . . . . . . . . . . . . . . . . . . . . . . 1 . overwrite_iff 38 | . . . . . . . . . . . 1 6 1 4 . 3 . 1 . 1 2 1 2 1 . 2 . 3 1 . 4 3 2 . formatsys_low 21 | . . . . . . . . . 1 . 2 . 1 . 1 . 1 . 2 . 1 . 2 . 2 . . . 1 . 1 2 3 1 formatsys_high 111 | . . . . . . . . . . . 2 5 4 3 2 1 3 4 2 9 1 7 6 6 3 6 3 5 3 5 4 11 7 9 Relay Couplers Released 227 | . . . . . . . . 28 . 5 . 20 . 15 . 15 . 11 . 32 1 18 3 11 4 10 . 19 3 14 . 18 . . Ejected 3 | . . . . . . . . . . . . . . . . . . . . . . . 3 . . . . . . . . . . . Machine Destruction 217 | . . . . . . . . 28 . 5 . 20 . 15 . 15 . 11 . 32 1 18 . 11 . 10 . 19 . 14 . 18 . . Programmers 7 | . . . . . . . . . . . . . . . . . . . . . . . . . 4 . . . 3 . . . . . Attached 82 | . . . . . . . . . 1 1 2 6 3 5 1 4 2 5 1 7 1 9 2 4 3 2 1 5 1 2 3 4 2 5 Merged Code Value 765 | . . . . . . . . . . . . . . . . . . . . 68 . 73 8 70 15 93 . 166 . 143 . 129 . . Fabnet Peak Effective % . | . . . . . . . . . . . . . . . . . . . . . . . . . . . . . . . . . . . Robots Rewired 51 | . . . . . . . . . . . . 11 . 5 . . 1 9 . . . 6 . . . 1 . 8 . 3 . 7 . . Allies Hacked 7 | . . . . . . . . . . . . . . 1 . . . . . 1 1 . 1 . . . . . . . 2 . 1 . Hacks Repelled . | . . . . . . . . . . . . . . . . . . . . . . . . . . . . . . . . . . . Allies | -11 -10 -10 -9 -9 -9 -8 -8 -8 -8 -8 -7 -7 -7 -7 -7 -7 -6 -6 -5 -5 -5 -5 -5 -5 -4 -4 -3 -3 -2 -2 -1 -1 -1 -1 -------- Run | Yrd Mat Min Mat Min Exi Min Mat Gar Mat Gar Fac Gar Fac Gar Fac Gar Fac Gar Fac Gar Fac Gar Fac Gar Fac Gar Res Gar Res Gar Acc Gar Acc Com Total Allies 285 | . . . . 6 . . 1 . 2 . 5 21 6 14 4 4 8 14 4 12 4 16 10 11 6 11 3 23 7 13 13 37 15 15 Largest Group 26 | . . . . 3 2 . 1 1 2 2 4 10 6 7 7 2 6 15 15 17 6 6 7 7 11 17 13 14 16 17 6 26 24 9 Highest-Rated Group 1750 | . . . . 80 49 . 10 10 33 33 113 230 140 285 152 32 168 469 463 561 351 351 418 323 660 963 930 923 1051 1128 459 1750 1740 970 Highest-Rated Ally 219 | . . . . 31 31 . 10 10 23 23 32 32 36 95 32 32 34 46 46 95 95 119 119 49 142 148 148 148 148 148 219 219 219 213 Total Orders 96 | . . . . . . . . 10 3 8 1 6 2 1 1 . 1 3 4 5 . 2 3 3 6 1 2 2 . 4 2 7 12 7 STAY 36 | . . . . . . . . 5 1 4 . 2 . . . . . 1 1 2 . 1 1 2 2 . 1 1 . 2 1 2 3 4 ROAM 1 | . . . . . . . . . . . . . . . . . . . . . . . . . . . . . . . . 1 . . FOLLOW 26 | . . . . . . . . 5 1 4 . 2 . . . . . . 1 . . 1 . 1 2 . 1 1 . 2 . 2 2 1 AID 33 | . . . . . . . . . 1 . 1 2 2 1 1 . 1 2 2 3 . . 2 . 2 1 . . . . 1 2 7 2 Ally Attacks 2328 | . . . . 15 . . . . . . 11 120 68 38 58 14 6 217 20 74 60 79 114 41 55 139 35 119 102 285 72 170 350 66 Total Damage 78243 | . . . . 112 . . . . . . 317 2937 1510 1137 1637 237 159 4275 346 1964 2136 1912 3811 1124 2107 4864 1130 3567 3659 8826 3565 5145 16068 5698 Kills 503 | . . . . 1 . . . . . . 2 27 13 11 16 2 2 35 6 16 16 13 23 12 13 31 1 20 22 70 23 32 87 9 Allies Corrupted 20 | . . . . . . . . . . . . . 2 2 . . . . . . . . 1 . . . . 1 1 2 . 2 3 6 Allies Melted 5 | . . . . . . . . . . . . 2 . . . . . . . 1 . 1 1 . . . . . . . . . . . Intel | -11 -10 -10 -9 -9 -9 -8 -8 -8 -8 -8 -7 -7 -7 -7 -7 -7 -6 -6 -5 -5 -5 -5 -5 -5 -4 -4 -3 -3 -2 -2 -1 -1 -1 -1 ------- Run | Yrd Mat Min Mat Min Exi Min Mat Gar Mat Gar Fac Gar Fac Gar Fac Gar Fac Gar Fac Gar Fac Gar Fac Gar Fac Gar Res Gar Res Gar Acc Gar Acc Com Active Infowar (turns) 148 | . . . . . . . . . . . . . . . . . . . . . . . . . . . . . . . . . . 148 Optics 148 | . . . . . . . . . . . . . . . . . . . . . . . . . . . . . . . . . . 148 Robot Analysis Total 1 | . . . 1 . . . . . . . . . . . . . . . . . . . . . . . . . . . . . . . Derelict Logs Recovered 2 | . . 1 . 1 . . . . . . . . . . . . . . . . . . . . . . . . . . . . . . Drone Launches . | . . . . . . . . . . . . . . . . . . . . . . . . . . . . . . . . . . . Drone Recoveries . | . . . . . . . . . . . . . . . . . . . . . . . . . . . . . . . . . . . Exploration | -11 -10 -10 -9 -9 -9 -8 -8 -8 -8 -8 -7 -7 -7 -7 -7 -7 -6 -6 -5 -5 -5 -5 -5 -5 -4 -4 -3 -3 -2 -2 -1 -1 -1 -1 ------------- Run | Yrd Mat Min Mat Min Exi Min Mat Gar Mat Gar Fac Gar Fac Gar Fac Gar Fac Gar Fac Gar Fac Gar Fac Gar Fac Gar Res Gar Res Gar Acc Gar Acc Com Turns Passed 44325 | 100 1756 1495 2367 1367 457 1223 2520 1854 2039 1523 933 1480 1462 1272 1654 1097 975 1234 651 1526 929 1385 1155 999 600 1095 637 1451 506 1277 893 1500 1671 1242 Spaces Moved 21095 | 55 856 521 974 534 261 472 1173 726 864 658 406 724 767 695 926 567 479 641 281 771 469 728 593 550 284 489 328 837 270 674 482 785 780 475 Core 40 | 2 . . . . . . . . . . . . . . . . . . . . . . . . . . . . . . . . . 38 Treads 21040 | 53 856 521 974 534 261 472 1173 726 864 658 406 724 767 695 926 567 479 641 281 771 469 728 593 550 284 489 328 837 270 674 482 785 780 422 Legs 15 | . . . . . . . . . . . . . . . . . . . . . . . . . . . . . . . . . . 15 Wheels . | . . . . . . . . . . . . . . . . . . . . . . . . . . . . . . . . . . . Hover . | . . . . . . . . . . . . . . . . . . . . . . . . . . . . . . . . . . . Flight . | . . . . . . . . . . . . . . . . . . . . . . . . . . . . . . . . . . . Fastest Speed 50 | 50 160 160 160 250 170 250 170 207 207 207 207 160 160 160 160 160 160 160 160 152 152 152 152 152 160 160 155 150 150 155 155 155 155 50 Average Speed 175 | 156 160 234 182 250 172 250 179 209 207 207 207 161 160 160 164 160 160 160 160 161 178 164 152 154 170 201 155 153 150 156 155 155 155 172 Slowest Speed 530 | 160 160 240 320 250 250 250 250 210 207 207 210 210 240 160 240 240 160 160 160 232 232 232 152 160 250 250 155 155 155 232 155 155 155 530 Overloaded Moves . | . . . . . . . . . . . . . . . . . . . . . . . . . . . . . . . . . . . Propulsion Burnouts . | . . . . . . . . . . . . . . . . . . . . . . . . . . . . . . . . . . . Robots Hopped 1 | . . . . . . . . . . . . . . . . . . . . . . . . . . . . . . . . 1 . . Potential Cave-ins . | . . . . . . . . . . . . . . . . . . . . . . . . . . . . . . . . . . . Cave-ins Triggered . | . . . . . . . . . . . . . . . . . . . . . . . . . . . . . . . . . . . Exploration Rate (%) 58 | 5 100 97 93 96 69 88 96 81 53 74 17 90 20 88 26 86 18 74 9 92 21 94 23 79 8 77 11 88 19 79 16 99 33 16 Regions Visited 34 Branch Regions 5 Pre-discovered Areas 9 | . 2 1 2 . 1 . 3 . . . . . . . . . . . . . . . . . . . . . . . . . . . Known Exits Taken 16 | . . . 1 1 . 1 1 . 1 . 1 . 1 . 1 . 1 . 1 . 1 . 1 . 1 . 1 . 1 . 1 . . . Unknown Exits Taken 5 | 1 1 1 . . 1 . . . . . . . . . . . . . . . . . . . . . . . . . . . 1 . Scrap Searched 5 | . . 3 . . . 2 . . . . . . . . . . . . . . . . . . . . . . . . . . . . Spaces Dug 63 | . . . . . . . 6 . 9 16 3 3 . . 1 . 5 . . 3 . . 2 2 2 . 1 . 1 2 1 3 2 1 Terrain Destroyed 598 | . . 73 5 18 . 33 31 36 52 33 3 3 4 55 35 35 11 20 1 5 4 1 34 3 5 . 10 15 4 27 3 5 15 19 Melee 6 | . . . . . . . . . . 1 2 3 . . . . . . . . . . . . . . . . . . . . . . Projectile 215 | . . . 5 2 . 3 31 1 25 1 1 . 4 2 3 1 11 . 1 3 4 1 16 3 5 . 4 15 4 27 3 5 15 19 AOE 377 | . . 73 . 16 . 30 . 35 27 31 . . . 53 32 34 . 20 . 2 . . 18 . . . 6 . . . . . . . Terrain Rammed . | . . . . . . . . . . . . . . . . . . . . . . . . . . . . . . . . . . . Walls Destroyed . | . . . . . . . . . . . . . . . . . . . . . . . . . . . . . . . . . . . Machines Disabled . | . . . . . . . . . . . . . . . . . . . . . . . . . . . . . . . . . . . Actions | -11 -10 -10 -9 -9 -9 -8 -8 -8 -8 -8 -7 -7 -7 -7 -7 -7 -6 -6 -5 -5 -5 -5 -5 -5 -4 -4 -3 -3 -2 -2 -1 -1 -1 -1 --------- Run | Yrd Mat Min Mat Min Exi Min Mat Gar Mat Gar Fac Gar Fac Gar Fac Gar Fac Gar Fac Gar Fac Gar Fac Gar Fac Gar Res Gar Res Gar Acc Gar Acc Com Total 27070 | 67 1099 746 1396 550 272 495 1501 895 1014 764 470 940 960 790 1025 674 627 814 472 1033 546 900 828 692 393 596 452 1010 369 888 620 1064 1230 878 Wait 2547 | . 116 183 177 . . 9 223 31 62 16 8 33 149 14 11 11 67 95 166 83 13 34 85 38 61 38 58 47 26 80 34 152 221 206 Move 21071 | 55 855 520 973 533 260 471 1173 725 864 657 405 723 767 694 926 566 479 640 281 770 469 727 592 549 284 488 328 836 270 673 482 782 779 475 Hop 1 | . . . . . . . . . . . . . . . . . . . . . . . . . . . . . . . . 1 . . Pick Up 234 | 1 10 . 25 1 2 . 14 13 3 11 4 15 1 7 8 10 5 6 . 16 1 9 2 13 6 12 2 5 3 7 1 13 3 5 Fast Attach 124 | 7 2 1 24 . 2 . 11 . 6 2 . 4 3 1 10 1 5 2 1 6 5 3 1 4 1 1 . 5 6 1 . 2 2 5 Attach 114 | 1 2 1 8 . . 2 4 2 . . 2 3 3 4 5 6 6 5 1 6 1 4 3 7 3 4 3 1 3 3 3 3 4 11 Detach 50 | 2 . . 8 . 2 . 2 . . 1 . 2 . . 6 2 4 5 1 3 2 1 1 1 1 . . 2 1 1 . 1 . 1 Swap 341 | . 10 8 18 4 . 3 7 11 10 7 17 25 4 15 10 18 8 10 3 15 8 15 17 4 9 5 4 10 3 9 13 10 20 11 Drop 222 | 1 7 2 26 1 6 . 13 10 10 10 6 19 1 1 12 6 1 4 . 18 1 10 . 6 3 8 1 10 9 4 2 6 4 4 Fire 2085 | . 75 27 82 8 . 9 49 92 53 43 25 62 29 47 35 54 44 46 15 103 45 93 121 66 22 35 54 91 46 105 82 87 192 148 Melee 37 | . . . . . . . . . . 10 2 25 . . . . . . . . . . . . . . . . . . . . . . Ram 1 | . . . . . . . . . . . . . . . . . . . . . . . . . . . . . . . . . 1 . Kick 1 | . . . . . . . . . . . . . . . . . . . . . . . . . . . . . . . . . . 1 Crush 76 | . 8 4 5 3 . 1 5 2 5 1 1 1 3 1 2 . 1 . 2 4 . 2 5 1 . . 1 . 1 4 3 3 4 3 Escape Stasis 26 | . . . . . . . . 9 . 6 . . . . . . . . . . . . . . . 4 . . . . . . . 7 Rewire 76 | . . . . . . . . . 1 . . 28 . 6 . . 7 1 2 9 1 2 1 3 3 1 1 3 1 1 . 4 . 1 Trap 64 | . 14 . 50 . . . . . . . . . . . . . . . . . . . . . . . . . . . . . . . Miscellaneous . | . . . . . . . . . . . . . . . . . . . . . . . . . . . . . . . . . . . Route ------- -11/Scrapyard -10/Materials (discovered 6 exits: *Mat x3 / [*Min x2] / [*Sub]) -10/Mines (discovered 2 exits: *Mat x2) -9/Materials (discovered 6 exits: *Mat x3 / *Min x2 / *Sto) -9/Mines (discovered 4 exits: *Mat x2 / *Exi / [*Zio]) -9/Exiles -8/Mines (discovered 2 exits: *Mat x2) -8/Materials (discovered 4 exits: *Fac x3 / Gar) -8/Garrison (discovered 3 exits: *Mat x3) -8/Materials (discovered 2 exits: *Fac / Gar) -8/Garrison (discovered 3 exits: *Fac x3) -7/Factory (discovered 7 exits: Fac x4 / Low x2 / Gar) -7/Garrison (discovered 2 exits: *Fac x2) -7/Factory (discovered 3 exits: *Fac / Low / Gar) -7/Garrison (discovered 4 exits: *Fac x3 / *Fac) -7/Factory (discovered 2 exits: *Fac / Gar) -7/Garrison (discovered 3 exits: *Fac x3) -6/Factory -6/Garrison (discovered 3 exits: *Fac x3) -5/Factory -5/Garrison (discovered 3 exits: *Fac x3) -5/Factory (discovered 2 exits: *Fac / Gar) -5/Garrison (discovered 4 exits: *Fac x3 / *Fac) -5/Factory (discovered 2 exits: *Fac / Gar) -5/Garrison (discovered 3 exits: *Fac x3) -4/Factory (discovered 2 exits: *Res / Gar) -4/Garrison (discovered 3 exits: *Res x3) -3/Research (discovered 2 exits: [*Tes] / Gar) -3/Garrison (discovered 3 exits: *Res x3) -2/Research (discovered 2 exits: *Acc / Gar) -2/Garrison (discovered 3 exits: *Acc x3) -1/Access -1/Garrison (discovered 4 exits: [*Acc x4]) -1/Access -1/Command (discovered 1 exit: [*Sur]) History --------- Turn | Location | Event 7 | -11/Scrapyard | Discovered new exit (range 15) 101 | -11/Scrapyard | Entered Materials 261 | -10/Materials | Discovered new exit (range 15) 313 | -10/Materials | Build established: Mutant 360 | -10/Materials | Discovered new exit (range 13) 558 | -10/Materials | Discovered new exit (range 15) 919 | -10/Materials | Discovered new exit (range 5) 1024 | -10/Materials | Repaired Lgt. Treads 1101 | -10/Materials | Discovered new exit (range 9) 1535 | -10/Materials | Discovered new exit (range 15) 1857 | -10/Materials | Entered Mines 1864 | -10/Mines | Core integrity fell below 50% 1943 | -10/Mines | Discovered new exit (range 6) 2204 | -10/Mines | Discovered new exit (range 5) 2209 | -10/Mines | Learned location of Storage (-9) 2756 | -10/Mines | Excavation squad dispatched 2756 | -10/Mines | A large section of the Mines collapsed 3066 | -10/Mines | Core integrity fell below 20% 3352 | -10/Mines | Entered Materials 3352 | -9/Materials | Evolved 2 slots: Propulsion x1, Utility x1 3531 | -9/Materials | Discovered new exit (range 7) 3644 | -9/Materials | Build established: Scavenger-Mutant 3794 | -9/Materials | Discovered new exit (range 15) 4107 | -9/Materials | Discovered new exit (range 14) 4212 | -9/Materials | Discovered new exit (range 10) 4362 | -9/Materials | Identified exit to Mines 4362 | -9/Materials | Identified exit to Storage 4900 | -9/Materials | Identified exit to Materials 4992 | -9/Materials | Learned location of 1 exit from Recycling 5024 | -9/Materials | Learned Storage stockpile data 5057 | -9/Materials | Learned Storage emergency access door positions 5062 | -9/Materials | Repaired Lgt. Treads+ 5081 | -9/Materials | Loaded intel: 10 terminal locations 5089 | -9/Materials | Repaired Lgt. Treads+ 5116 | -9/Materials | Loaded intel: 2 repair station locations 5117 | -9/Materials | Repaired Lgt. Treads+ 5161 | -9/Materials | Learned location of Zion (-7) 5719 | -9/Materials | Entered Mines 5720 | -9/Mines | A Derelict revealed a hidden shortcut to a safe place 5747 | -9/Mines | Build established: Mutant 5826 | -9/Mines | Received a Rocket Launcher from a helpful Derelict 6026 | -9/Mines | Assisted by bots powering up and referring to "LRC-V3" 6122 | -9/Mines | Assembled infested the area 6127 | -9/Mines | Assisted by a Guerilla fighting off Assembled 6372 | -9/Mines | Discovered exit to Materials (range 5) 6535 | -9/Mines | Received a Mining Laser from a helpful Derelict 6599 | -9/Mines | Discovered exit to Materials (range 5) 6781 | -9/Mines | Deemed a non-threat by the Exiles lab entrance 6888 | -9/Mines | Identified exit to Exiles 7086 | -9/Mines | Entered Exiles 7086 | -9/Exiles | Accompanied by 2 allies 7116 | -9/Exiles | Led the pair of lost Derelicts to a safe place 7135 | -9/Exiles | Met 8R-AWN 7164 | -9/Exiles | Met EX-HEX 7258 | -9/Exiles | Met EX-DEC 7287 | -9/Exiles | Met EX-BIN 7312 | -9/Exiles | Aligned with FarCom system 7314 | -9/Exiles | Given EX-Vault access code 7356 | -9/Exiles | Opened EX-Vault 7369 | -9/Exiles | Found Gui. Plasma Cannon 7379 | -9/Exiles | Found 0b10 Alert Chip 7412 | -9/Exiles | Warned to stay clear of 0b10 Research branches 7529 | -9/Exiles | Discovered new exit (range 10) 7543 | -9/Exiles | Stole two prototypes: 0b10 Alert Chip, Gui. Plasma Cannon 7543 | -9/Exiles | Entered Mines 7902 | -8/Mines | Discovered exit to Materials (range 6) 8306 | -8/Mines | Discovered exit to Materials (range 10) 8766 | -8/Mines | Entered Materials 8766 | -8/Materials | Evolved 2 slots: Propulsion x1, Utility x1 9378 | -8/Materials | Met 7R-MNS 9445 | -8/Materials | Discovered new exit (range 14) 9455 | -8/Materials | Learned 2 Lower Caves zone layouts 9655 | -8/Materials | Learned location of 2 exits from Factory 9779 | -8/Materials | Learned location of 3 exits from Factory 9834 | -8/Materials | Learned location of 1 exit from Storage 9837 | -8/Materials | Central database locked down 10167 | -8/Materials | Discovered new exit (range 12) 10474 | -8/Materials | Repaired Cld. Ion Engine 10579 | -8/Materials | Discovered new exit (range 11) 10820 | -8/Materials | Repaired Hvy. Particle Cannon+ 10860 | -8/Materials | Repaired Arm. Treads+ 11266 | -8/Materials | Identified exit to Garrison 11286 | -8/Materials | Entered Garrison 11286 | -8/Garrison | Accompanied by 1 ally 11396 | -8/Garrison | Triggered checkpoint 11454 | -8/Garrison | Triggered checkpoint 11509 | -8/Garrison | Destroyed 7 combat bots 11700 | -8/Garrison | Garrison Relay disabled 11834 | -8/Garrison | Triggered checkpoint 11848 | -8/Garrison | Triggered checkpoint 11895 | -8/Garrison | Triggered checkpoint 12174 | -8/Garrison | Discovered new exit (range 10) 12278 | -8/Garrison | Installed Relay Interface Framework 12310 | -8/Garrison | Garrison Relay disabled 12316 | -8/Garrison | Triggered checkpoint 12496 | -8/Garrison | Discovered new exit (range 12) 12706 | -8/Garrison | Discovered new exit (range 12) 12740 | -8/Garrison | Triggered checkpoint 12795 | -8/Garrison | Garrison Relay disabled 13032 | -8/Garrison | Garrison Relay disabled 13041 | -8/Garrison | Garrison Relay disabled 13041 | -8/Garrison | Garrison Relay disabled 13100 | -8/Garrison | Build established: Bothacker-Mutant 13140 | -8/Garrison | Entered Materials 13140 | -8/Materials | Accompanied by 1 ally 14148 | -8/Materials | Discovered new exit (range 9) 15179 | -8/Materials | Identified exit to Garrison 15179 | -8/Materials | Entered Garrison 15179 | -8/Garrison | Accompanied by 2 allies 15328 | -8/Garrison | Expanded RIF knowledge: Coupler Efficiency 15481 | -8/Garrison | Garrison Relay disabled 15581 | -8/Garrison | Triggered checkpoint 15608 | -8/Garrison | Triggered checkpoint 15667 | -8/Garrison | Destroyed 10 combat bots 15907 | -8/Garrison | Discovered new exit (range 8) 15957 | -8/Garrison | Triggered checkpoint 16075 | -8/Garrison | Triggered checkpoint 16101 | -8/Garrison | Triggered checkpoint 16432 | -8/Garrison | Discovered new exit (range 13) 16460 | -8/Garrison | Expanded RIF knowledge: Patrol Navigation 16622 | -8/Garrison | Discovered new exit (range 10) 16702 | -8/Garrison | Entered Factory 16702 | -7/Factory | Accompanied by 2 allies 16702 | -7/Factory | Evolved 2 slots: Utility x2 16703 | -7/Factory | Identified exit to Lower Caves 16704 | -7/Factory | Identified exit to Factory 16704 | -7/Factory | FarCom data flow suspended 16974 | -7/Factory | Central database locked down 17418 | -7/Factory | Garrison activated, responded to threat 17633 | -7/Factory | Identified exit to Garrison 17635 | -7/Factory | Entered Garrison 17635 | -7/Garrison | Accompanied by 2 allies 17803 | -7/Garrison | Triggered checkpoint 17957 | -7/Garrison | Garrison Relay disabled 18163 | -7/Garrison | Triggered checkpoint 18165 | -7/Garrison | Triggered checkpoint 18202 | -7/Garrison | Lost 5 allies 18293 | -7/Garrison | Expanded RIF knowledge: Threat Obfuscation 18341 | -7/Garrison | Discovered new exit (range 12) 18357 | -7/Garrison | Triggered checkpoint 18421 | -7/Garrison | Lost 4 allies 18485 | -7/Garrison | Learned Factory security intel 18530 | -7/Garrison | Garrison Relay disabled 18571 | -7/Garrison | Expanded RIF knowledge: Structural Interface 18591 | -7/Garrison | Build established: Botlord-Mutant 18649 | -7/Garrison | Triggered checkpoint 18710 | -7/Garrison | Garrison Relay disabled 18844 | -7/Garrison | Lost 3 allies 18963 | -7/Garrison | Triggered checkpoint 19017 | -7/Garrison | Triggered checkpoint 19023 | -7/Garrison | Discovered new exit (range 13) 19115 | -7/Garrison | Entered Factory 19115 | -7/Factory | Accompanied by 5 allies 19428 | -7/Factory | Garrison activated, responded to threat 19682 | -7/Factory | Repaired Imp. Heavy Treads 19733 | -7/Factory | Repaired Adv. Heat Sink 19778 | -7/Factory | Repaired Remote Datajack+ 20251 | -7/Factory | Discovered exit to Factory (range 7) 20289 | -7/Factory | Garrison activated, responded to threat 20572 | -7/Factory | Identified exit to Garrison 20577 | -7/Factory | Entered Garrison 20577 | -7/Garrison | Accompanied by 4 allies 20606 | -7/Garrison | Found embedded Infiltrators 20613 | -7/Garrison | Triggered checkpoint 20649 | -7/Garrison | Garrison Relay disabled 20695 | -7/Garrison | Triggered checkpoint 20724 | -7/Garrison | Discovered new exit (range 3) 20812 | -7/Garrison | Triggered checkpoint 20812 | -7/Garrison | Triggered checkpoint 20870 | -7/Garrison | Lost 6 allies 20903 | -7/Garrison | Triggered checkpoint 20911 | -7/Garrison | Triggered checkpoint 21103 | -7/Garrison | Discovered exit to Factory (range 3) 21128 | -7/Garrison | Triggered checkpoint 21148 | -7/Garrison | Garrison Relay disabled 21370 | -7/Garrison | Expanded RIF knowledge: Signal Jamming 21395 | -7/Garrison | Discovered exit to Factory (range 11) 21445 | -7/Garrison | Garrison Relay disabled 21520 | -7/Garrison | Discovered exit to Factory (range 11) 21610 | -7/Garrison | Garrison Relay disabled 21849 | -7/Garrison | Entered Factory 21849 | -7/Factory | Accompanied by 7 allies 22416 | -7/Factory | Lost 3 allies 22489 | -7/Factory | Discovered exit to Factory (range 10) 22795 | -7/Factory | Cargo convoy interrupted 22803 | -7/Factory | Core integrity fell below 50% 22849 | -7/Factory | Lost 3 parts (1n1u1w) 22851 | -7/Factory | Lost 4 allies 23097 | -7/Factory | Fabricated M-13 Machinist (x1) 23205 | -7/Factory | Lost 3 allies 23503 | -7/Factory | Identified exit to Garrison 23503 | -7/Factory | Entered Garrison 23559 | -7/Garrison | Triggered checkpoint 23592 | -7/Garrison | Garrison Relay disabled 23663 | -7/Garrison | Triggered checkpoint 23711 | -7/Garrison | Destroyed 10 combat bots 23772 | -7/Garrison | Triggered checkpoint 23775 | -7/Garrison | Triggered checkpoint 23780 | -7/Garrison | System corruption reached 10% 23875 | -7/Garrison | Destroyed 9 combat bots 23881 | -7/Garrison | Triggered checkpoint 23917 | -7/Garrison | Triggered checkpoint 23922 | -7/Garrison | Garrison Relay disabled 24019 | -7/Garrison | Triggered checkpoint 24025 | -7/Garrison | Discovered exit to Factory (range 11) 24148 | -7/Garrison | Expanded RIF knowledge: Robot Detection 24211 | -7/Garrison | Discovered exit to Factory (range 3) 24229 | -7/Garrison | Triggered checkpoint 24316 | -7/Garrison | Garrison Relay disabled 24338 | -7/Garrison | Expanded RIF knowledge: Program Shield 24529 | -7/Garrison | Discovered exit to Factory (range 9) 24541 | -7/Garrison | Triggered checkpoint 24560 | -7/Garrison | Garrison Relay disabled 24600 | -7/Garrison | Entered Factory 24600 | -6/Factory | Evolved 2 slots: Power x1, Utility x1 25083 | -6/Factory | Spotted B-75 Beast 25140 | -6/Factory | Destroyed B-75 Beast 25544 | -6/Factory | Identified exit to Garrison 25575 | -6/Factory | Entered Garrison 25575 | -6/Garrison | Accompanied by 6 allies 25735 | -6/Garrison | Spotted B-75 Beast 25760 | -6/Garrison | Allies destroyed B-75 Beast 25812 | -6/Garrison | Lost 3 allies 25855 | -6/Garrison | Triggered checkpoint 25901 | -6/Garrison | Garrison Relay disabled 25966 | -6/Garrison | Triggered checkpoint 26102 | -6/Garrison | Expanded RIF knowledge: Hotswap 26114 | -6/Garrison | Found Unknown Device 26114 | -6/Garrison | Identified Quantum Capacitor 26251 | -6/Garrison | Triggered checkpoint 26265 | -6/Garrison | Triggered checkpoint 26281 | -6/Garrison | Triggered checkpoint 26283 | -6/Garrison | Triggered checkpoint 26384 | -6/Garrison | Discovered new exit (range 3) 26407 | -6/Garrison | Triggered checkpoint 26413 | -6/Garrison | Learned Factory security intel 26443 | -6/Garrison | Garrison Relay disabled 26613 | -6/Garrison | Triggered checkpoint 26671 | -6/Garrison | Garrison Relay disabled 26694 | -6/Garrison | Discovered new exit (range 43) 26694 | -6/Garrison | Discovered new exit (range 18) 26694 | -6/Garrison | Discovered new exit (range 80) 26809 | -6/Garrison | Entered Factory 26809 | -5/Factory | Accompanied by 12 allies 26809 | -5/Factory | Evolved 2 slots: Utility x2 27299 | -5/Factory | Identified exit to Garrison 27460 | -5/Factory | Entered Garrison 27460 | -5/Garrison | Accompanied by 15 allies 27488 | -5/Garrison | Triggered checkpoint 27511 | -5/Garrison | Garrison Relay disabled 27597 | -5/Garrison | Expanded RIF knowledge: Code Merge 27718 | -5/Garrison | Garrison Relay disabled 27726 | -5/Garrison | Garrison Relay disabled 27728 | -5/Garrison | Lost 9 allies 27743 | -5/Garrison | Garrison Relay disabled 27760 | -5/Garrison | Garrison Relay disabled 27829 | -5/Garrison | Spotted B-75 Beast 27861 | -5/Garrison | Destroyed B-75 Beast 27920 | -5/Garrison | Lost 8 allies 27966 | -5/Garrison | Triggered checkpoint 27994 | -5/Garrison | Triggered checkpoint 27996 | -5/Garrison | Triggered checkpoint 28081 | -5/Garrison | Lost 3 allies 28098 | -5/Garrison | Triggered checkpoint 28125 | -5/Garrison | Garrison Relay disabled 28152 | -5/Garrison | Triggered checkpoint 28344 | -5/Garrison | Discovered new exit (range 11) 28552 | -5/Garrison | Discovered new exit (range 10) 28566 | -5/Garrison | Triggered checkpoint 28585 | -5/Garrison | Garrison Relay disabled 28619 | -5/Garrison | Found embedded Infiltrators 28626 | -5/Garrison | Discovered new exit (range 6) 28626 | -5/Garrison | Discovered new exit (range 50) 28626 | -5/Garrison | Discovered new exit (range 62) 28828 | -5/Garrison | Garrison Relay disabled 28840 | -5/Garrison | Triggered checkpoint 28986 | -5/Garrison | Entered Factory 28986 | -5/Factory | Accompanied by 5 allies 29203 | -5/Factory | Unchained authorized (CL-0N3) 29286 | -5/Factory | First assault squad dispatched 29306 | -5/Factory | Discovered new exit (range 15) 29562 | -5/Factory | Lost 3 allies 29767 | -5/Factory | Lost 3 allies 29855 | -5/Factory | K-01 Serf reconstituted as Executioner 29855 | -5/Factory | Spotted Executioner 29862 | -5/Factory | Destroyed Executioner 29862 | -5/Factory | Executioner reconstituted as CL-0N3 29915 | -5/Factory | Identified exit to Garrison 29915 | -5/Factory | Entered Garrison 29968 | -5/Garrison | Triggered checkpoint 30022 | -5/Garrison | Expanded RIF knowledge: Autoassimilate 30095 | -5/Garrison | Triggered checkpoint 30129 | -5/Garrison | Discovered new exit (range 3) 30164 | -5/Garrison | Garrison Relay disabled 30211 | -5/Garrison | Triggered checkpoint 30211 | -5/Garrison | Spotted B-75 Beast 30222 | -5/Garrison | Assimilated Beast 6a with formatsys_high 30237 | -5/Garrison | Triggered checkpoint 30287 | -5/Garrison | Triggered checkpoint 30312 | -5/Garrison | Triggered checkpoint 30360 | -5/Garrison | Lost 7 allies 30467 | -5/Garrison | Garrison Relay disabled 30477 | -5/Garrison | Triggered checkpoint 30548 | -5/Garrison | Discovered new exit (range 13) 30727 | -5/Garrison | Discovered new exit (range 12) 30729 | -5/Garrison | Triggered checkpoint 30753 | -5/Garrison | Garrison Relay disabled 30998 | -5/Garrison | Garrison Relay disabled 31046 | -5/Garrison | Discovered new exit (range 13) 31066 | -5/Garrison | Rewired Executioner 31071 | -5/Garrison | Rewired Executioner 31133 | -5/Garrison | Triggered checkpoint 31300 | -5/Garrison | Entered Factory 31300 | -5/Factory | Accompanied by 4 allies 31450 | -5/Factory | Unchained authorized (CL-0N3) 31747 | -5/Factory | K-01 Serf reconstituted as Quarantine Guard 31747 | -5/Factory | Spotted Quarantine Guard 31763 | -5/Factory | Allies destroyed Quarantine Guard 31763 | -5/Factory | Quarantine Guard reconstituted as CL-0N3 31900 | -5/Factory | First assault squad dispatched 32026 | -5/Factory | A-15 Conveyor reconstituted as Lightning 32026 | -5/Factory | Spotted Lightning 32047 | -5/Factory | System corruption reached 10% 32061 | -5/Factory | Destroyed Lightning 32061 | -5/Factory | Lightning reconstituted as CL-0N3 32128 | -5/Factory | Discovered new exit (range 15) 32444 | -5/Factory | Identified exit to Garrison 32455 | -5/Factory | Entered Garrison 32471 | -5/Garrison | Triggered checkpoint 32494 | -5/Garrison | Garrison Relay disabled 32661 | -5/Garrison | Destroyed 10 combat bots 32663 | -5/Garrison | Lost 6 parts (2p2u2w) 32728 | -5/Garrison | Triggered checkpoint 32747 | -5/Garrison | Triggered checkpoint 32752 | -5/Garrison | Triggered checkpoint 32847 | -5/Garrison | Discovered new exit (range 11) 32929 | -5/Garrison | Triggered checkpoint 32975 | -5/Garrison | Discovered new exit (range 45) 32975 | -5/Garrison | Discovered new exit (range 68) 32975 | -5/Garrison | Discovered new exit (range 26) 32984 | -5/Garrison | Garrison Relay disabled 33057 | -5/Garrison | Triggered checkpoint 33133 | -5/Garrison | Expanded RIF knowledge: Threat Obfuscation 33159 | -5/Garrison | Triggered checkpoint 33182 | -5/Garrison | Garrison Relay disabled 33454 | -5/Garrison | Entered Factory 33454 | -4/Factory | Accompanied by 6 allies 33454 | -4/Factory | Evolved 2 slots: Power x1, Utility x1 33679 | -4/Factory | Unchained authorized (CL-0N3) 33687 | -4/Factory | Discovered new exit (range 15) 33987 | -4/Factory | Garrison activated, responded to threat 34039 | -4/Factory | Identified exit to Garrison 34054 | -4/Factory | Entered Garrison 34054 | -4/Garrison | Accompanied by 11 allies 34192 | -4/Garrison | Triggered checkpoint 34229 | -4/Garrison | Garrison Relay disabled 34258 | -4/Garrison | Triggered checkpoint 34328 | -4/Garrison | Triggered checkpoint 34333 | -4/Garrison | Triggered checkpoint 34334 | -4/Garrison | Triggered checkpoint 34370 | -4/Garrison | Triggered checkpoint 34410 | -4/Garrison | Expanded RIF knowledge: Code Merge 34457 | -4/Garrison | Discovered new exit (range 10) 34472 | -4/Garrison | Triggered checkpoint 34500 | -4/Garrison | Garrison Relay disabled 34717 | -4/Garrison | Spotted B-86 Titan 34742 | -4/Garrison | Triggered checkpoint 34756 | -4/Garrison | Lost 3 allies 34774 | -4/Garrison | Triggered checkpoint 34819 | -4/Garrison | Garrison Relay disabled 34838 | -4/Garrison | Discovered new exit (range 39) 34838 | -4/Garrison | Discovered new exit (range 10) 34838 | -4/Garrison | Discovered new exit (range 70) 34895 | -4/Garrison | Rewired B-90 Cyclops 34916 | -4/Garrison | Found Quantum Capacitor 35041 | -4/Garrison | Triggered checkpoint 35067 | -4/Garrison | Found Relay Coupler [Proto] 35070 | -4/Garrison | Found Relay Coupler [Proto] 35087 | -4/Garrison | Found Relay Coupler [Proto] 35090 | -4/Garrison | Found Relay Coupler [Proto] 35149 | -4/Garrison | Entered Research 35149 | -3/Research | Accompanied by 10 allies 35149 | -3/Research | Evolved 2 slots: Propulsion x2 35544 | -3/Research | Spotted B-86 Titan 35583 | -3/Research | Destroyed B-86 Titan 35705 | -3/Research | Discovered new exit (range 9) 35756 | -3/Research | Identified exit to Garrison 35786 | -3/Research | Entered Garrison 35786 | -3/Garrison | Accompanied by 9 allies 35831 | -3/Garrison | Triggered checkpoint 35855 | -3/Garrison | Triggered checkpoint 35872 | -3/Garrison | Spotted B-86 Titan 35875 | -3/Garrison | Destroyed B-86 Titan 35894 | -3/Garrison | Triggered checkpoint 35898 | -3/Garrison | Triggered checkpoint 35903 | -3/Garrison | Triggered checkpoint 35933 | -3/Garrison | Lost 7 allies 35967 | -3/Garrison | Garrison Relay disabled 36018 | -3/Garrison | Garrison Relay disabled 36162 | -3/Garrison | Triggered checkpoint 36199 | -3/Garrison | Rescued a captive Derelict 36219 | -3/Garrison | Garrison Relay disabled 36267 | -3/Garrison | Expanded RIF knowledge: Watcher Feeds 36295 | -3/Garrison | P-80 Master assimilated allied SP-H7Y(b) 36325 | -3/Garrison | Expanded RIF knowledge: Autoassimilate 36350 | -3/Garrison | Discovered new exit (range 5) 36478 | -3/Garrison | Triggered checkpoint 36603 | -3/Garrison | Garrison Relay disabled 36644 | -3/Garrison | Discovered new exit (range 10) 37142 | -3/Garrison | Triggered checkpoint 37165 | -3/Garrison | Garrison Relay disabled 37185 | -3/Garrison | Discovered new exit (range 9) 37237 | -3/Garrison | Entered Research 37237 | -2/Research | Accompanied by 14 allies 37237 | -2/Research | Evolved 2 slots: Utility x2 37366 | -2/Research | Spotted B-90 Cyclops 37376 | -2/Research | Allies destroyed B-90 Cyclops 37401 | -2/Research | Found Quantum Capacitor 37456 | -2/Research | Lost 3 allies 37492 | -2/Research | Found Exp. Core Analyzer 37497 | -2/Research | Unchained authorized (GL-D0S) 37550 | -2/Research | Discovered new exit (range 6) 37649 | -2/Research | Found Faulty Tactical Quantum Warhead 37709 | -2/Research | Garrison activated, responded to threat 37735 | -2/Research | Identified exit to Garrison 37743 | -2/Research | Entered Garrison 37743 | -2/Garrison | Accompanied by 14 allies 37757 | -2/Garrison | Triggered checkpoint 37800 | -2/Garrison | Lost 6 allies 37806 | -2/Garrison | Triggered checkpoint 37817 | -2/Garrison | Garrison Relay disabled 38153 | -2/Garrison | Spotted B-90 Cyclops 38159 | -2/Garrison | Assembled breached garrison interior 38168 | -2/Garrison | Destroyed B-90 Cyclops 38283 | -2/Garrison | Garrison Relay disabled 38326 | -2/Garrison | Spotted B-90 Cyclops 38338 | -2/Garrison | Discovered new exit (range 11) 38550 | -2/Garrison | Expanded RIF knowledge: Threat Obfuscation 38557 | -2/Garrison | Discovered new exit (range 12) 38569 | -2/Garrison | Garrison Relay disabled 38813 | -2/Garrison | Lost 3 allies 38839 | -2/Garrison | Destroyed 18 combat bots 38878 | -2/Garrison | Lost 3 allies 38887 | -2/Garrison | Discovered new exit (range 8) 38943 | -2/Garrison | Learned Access security intel 39020 | -2/Garrison | Entered Access 39020 | -1/Access | Accompanied by 5 allies 39020 | -1/Access | Evolved 2 slots: Power x1, Utility x1 39150 | -1/Access | Garrison activated, responded to threat 39200 | -1/Access | Spotted B-99 Colossus 39217 | -1/Access | Assimilated Colossus 10a with formatsys_high 39241 | -1/Access | Lost 3 allies 39248 | -1/Access | Garrison activated, responded to threat 39455 | -1/Access | Lost 3 allies 39913 | -1/Access | Identified exit to Garrison 39913 | -1/Access | Entered Garrison 39913 | -1/Garrison | Accompanied by 4 allies 40006 | -1/Garrison | Found Relay Coupler [Proto] 40009 | -1/Garrison | Found Relay Coupler [Proto] 40012 | -1/Garrison | Found Relay Coupler [Proto] 40071 | -1/Garrison | Garrison Relay disabled 40111 | -1/Garrison | Rescued a captive Derelict 40115 | -1/Garrison | Rescued a captive Derelict 40121 | -1/Garrison | Triggered checkpoint 40202 | -1/Garrison | Triggered checkpoint 40204 | -1/Garrison | Spotted B-99 Colossus 40207 | -1/Garrison | Rewired B-99 Colossus 40207 | -1/Garrison | Triggered checkpoint 40216 | -1/Garrison | Triggered checkpoint 40232 | -1/Garrison | Triggered checkpoint 40274 | -1/Garrison | Lost 3 allies 40281 | -1/Garrison | Triggered checkpoint 40345 | -1/Garrison | Triggered checkpoint 40372 | -1/Garrison | Discovered new exit (range 3) 40400 | -1/Garrison | Garrison Relay disabled 40437 | -1/Garrison | Discovered new exit (range 14) 40589 | -1/Garrison | Expanded RIF knowledge: Command Fork 40609 | -1/Garrison | Discovered new exit (range 10) 40643 | -1/Garrison | Triggered checkpoint 40657 | -1/Garrison | Garrison Relay disabled 40691 | -1/Garrison | Rewired Executioner 40991 | -1/Garrison | Triggered checkpoint 41033 | -1/Garrison | Lost 4 allies 41097 | -1/Garrison | Lost 5 allies 41263 | -1/Garrison | Discovered new exit (range 15) 41413 | -1/Garrison | Entered Access 41413 | -1/Access | Accompanied by 23 allies 41480 | -1/Access | Found Exp. EM Disruption Field 41823 | -1/Access | Spotted B-99 Colossus 41826 | -1/Access | Autoassimilated Colossus 10c with RIF 41852 | -1/Access | Found Quantum Capacitor 42043 | -1/Access | Lost 3 allies 42103 | -1/Access | Lost 4 allies 42116 | -1/Access | Energy Cycler disabled 42204 | -1/Access | Lost 3 allies 42333 | -1/Access | Lost 4 allies 42413 | -1/Access | First assault squad dispatched 42431 | -1/Access | Destroyed 7 combat bots 42481 | -1/Access | System corruption reached 10% 42508 | -1/Access | Lost 4 allies 42868 | -1/Access | Spotted B-99 Colossus 42868 | -1/Access | Spotted B-99 Colossus 42872 | -1/Access | Assimilated Colossus 10d with formatsys_high 42908 | -1/Access | Allies destroyed B-99 Colossus 42925 | -1/Access | Discovered new exit (range 5) 43084 | -1/Access | Entered Command 43084 | -1/Command | Accompanied by 6 allies 43156 | -1/Command | Lost 5 allies 43334 | -1/Command | First assault squad dispatched 43405 | -1/Command | Build established: Generator-Mutant 43776 | -1/Command | Spotted Alpha 7 43776 | -1/Command | Spotted Alpha 7 43776 | -1/Command | Spotted Striker 43776 | -1/Command | Spotted Striker 43776 | -1/Command | Spotted Executioner 43776 | -1/Command | Spotted Executioner 43776 | -1/Command | Spotted Executioner 43776 | -1/Command | Spotted Executioner 43777 | -1/Command | Autoassimilated Executioner with RIF 43777 | -1/Command | Autoassimilated Executioner with RIF 43777 | -1/Command | Autoassimilated Executioner with RIF 43777 | -1/Command | Spotted B-99 Colossus 43781 | -1/Command | Assimilated Alpha 7 with formatsys_high 43808 | -1/Command | Assimilated Striker with formatsys_high 43809 | -1/Command | Assimilated Executioner with formatsys_high 43809 | -1/Command | Assimilated Striker with formatsys_high 43822 | -1/Command | Destroyed Striker 43857 | -1/Command | Assimilated Alpha 7 with formatsys_high 43889 | -1/Command | Destroyed B-99 Colossus 43911 | -1/Command | Lost 4 parts (1p2n1w) 43917 | -1/Command | Lost 13 allies 43925 | -1/Command | Build established: Botlord-Mutant 44222 | -1/Command | Spotted M Guard 44222 | -1/Command | Spotted M Guard 44222 | -1/Command | Spotted Combat Programmer 44224 | -1/Command | Spotted Combat Programmer 44239 | -1/Command | System corruption reached 30% 44259 | -1/Command | Assimilated M Guard with formatsys_high 44259 | -1/Command | Assimilated M Guard with formatsys_high 44286 | -1/Command | Allies destroyed Combat Programmer 44310 | -1/Command | Spotted B-99 Colossus 44311 | -1/Command | Core integrity fell below 50% 44324 | -1/Command | Core integrity fell below 20% 44324 | -1/Command | Discovered new exit (range 9) 44326 | -1/Command | Destroyed by B-99 Colossus with Multirail Last Messages --------------- 44319_ A bubble of rippling energy engulfs the area. 44319_ Field strength at 94. 44319_ Penetrated by Slug. 44319_ Slug penetrates Wall. 44319_ Penetrated by EMDS Slug. 44320_ Field strength at 42. 44321_ System corrupted: Heat flow error (+237). 44321_ Field strength at 25. 44322_ Stasis field depleted. 44323_ P-80 Master resets Combat Programmer, system corruption cleaned. 44323_ Relay Coupler [Proto] destroyed. 44323_ Critical hit (Blast). 44323_ Penetrated by Slug. 44323_ Exp. Core Analyzer destroyed. 44323_ Penetrated by EMDS Slug. 44324_ EXIT=FOUND 44324_ The Access Shell folds into the floor. 44326_ Penetrated by EMDS Slug. 44326_ Penetrated by Slug. 44326_ Slug penetrates Wall. Map ----- +----------------------------------------------------+ | #" ## ####+########## ???# #?????? | | ##" ## #??????#######?????# #?????? | | ?#" ## #??????????????????# #?????? | | ?#" + #??????????????????# #?????? | | ?#T ## ####???????????????# +?????? | | ?#" ## #???????????????# #?????? | | ?#" ## #?????########### #?????? | | ?# % ## ###?? ## #?????? | | ?# ## != #?? ## #?????? | | ## %% *## == !! #? ## #?????? | | #"#""""""## !! ###? ## #?????? | | + ## #?????? | | %!% # ## ??????? | | % + ## ??????? | | % [ %! """ """ # ## ??????? | | % """T""" # ## ??????? | | ###"[ =% "############ #? ## ??????? | | ??##" % " #?????????# #? #? ??????? | | ???#" ! "##?????????+ #?? #? ??????? | | ???##! "#??????????######??###########? ??????? | | ???#=%[ "#?????????????????????????????? ??????? | | ???##* ##??????????????????????????????????????? | | ???#=%!= #???????????????????????????????????????? | | ???#"!%% #?????????????##????????????????????????? | | ???#[ *!%#??????????####;##########??????????????? | | ####"[[!!#?????????##; @ #??????????????? | | !!% %#???#######;; % #??????????????? | | #%% #?### # #%;%% ^^^^^ #??????????????? | | =![% ###^^^^ ^^ ^^ ^ #??????????????? | | #%| /p^p^^^%^%^ ^ #??????????????? | | +!= /^ssss^^ ^^ ^ "< #??????????????? | | # % /^p^^ ^^ ^ "" #??????????????? | | + / s^^^^^^^^ ^ #??????????????? | | #"###"##^^ ^^^^^^ ^ #??????????????? | | ###?# ###%%# # #%%% ^^ ^ #??????????????? | | #???# #?#""######;BB #??????????????? | | #???###?####????##BB% #??????????????? | | #????????????????##############??????????????? | | #????????????????????????????????????????????? | | #????????????????????????????????????????????? | | #????????????????????????????????????????????? | | #????????????????????????????????????????????? | | /####????????????????????????????????????????????? | | ????????????????????????????????????????????????? | | ????????????????????????????????????????????????? | | ????????????????????????????????????????????????? | | ?????????????????????????????????????????????????? | | ?????????????????????????????????????????????????? | | ?????????????????????????????????????????????????? | | ?????????????????????????????????????????????????? | +----------------------------------------------------+ Best States ------------- Heat Dissipation 114 Coolant Potential 120 Energy Generation 89 Energy Capacity 1100 Matter Stores 300 Matter Capacity 300 Sight Range 20 Terrain Scan Density 10 Base Temperature (-) 150 Armor Coverage 1200 Point Defense Rating 240 Evasion (%) 50 Core Analysis 8 Recoil Reduction 6 Offensive Hacking 10 Relay Coupler Types 6 Relay Coupler Value 325 Authchip Count 1 Item Schematics ----------------- None Robot Schematics ------------------ M-13 Machinist | -10/Materials | Hacked Y-54 Guardian | -6/Factory | Hacked Fabricated ------------ M-13 Machinist | x1 | -7/Factory | Authchip Repaired ---------- Lgt. Treads | 10% | -10/Materials Lgt. Treads | 29% | -9/Materials Lgt. Treads | 40% | -9/Materials Lgt. Treads | 55% | -9/Materials Cld. Ion Engine | 40% | -8/Materials Hvy. Particle Cannon | 36% | -8/Materials Arm. Treads | 41% | -8/Materials Imp. Heavy Treads | 50% | -7/Factory Adv. Heat Sink | 50% | -7/Factory Remote Datajack | 52% | -7/Factory Studied --------- Lgt. Treads | -9/Materials | Hacked Arm. Treads | -8/Materials | Hacked Imp. Treads | -8/Materials | Hacked Hvy. Particle Cannon | -8/Materials | Hacked Imp. Grenade Launcher | -8/Materials | Hacked Remote Datajack | -7/Factory | Hacked Hvy. Ion Cannon | -7/Factory | Hacked Imp. Deuterium Engine | -7/Factory | Hacked Phase Cannon | -7/Factory | Hacked Com. HERF Cannon | -3/Research | Hacked Imp. Remote Datajack | -3/Research | Hacked Alien Tech Used ----------------- None Achievements -------------- Thread The Needle Around The Corner Challenges ------------ None Game ------ Seed JammingFusionShooter Manual? 0 Play Time 05:00:04 Cumulative 803.6 hours Start 2025.11.10 @ 16:44:40 End 2025.11.11 @ 17:36:34 Sessions 18 Manual Loads 0 Difficulty Rogue Special Mode None Game No. 401 Rogue 401 Adventurer 0 Explorer 0 Win Type - Total 67 Types 43/5/6/4/1/1/3/2/1/1 Lore% 92 Gallery% 85 Achievement% 68 Wizard Run 0 Options --------- Layout 0 ASCII 0 Keyboard 1 Movement Numpad Keybinds 0 Fullscreen 2 Font 18/SmallcapsGlow Map View 76x50 Zoom Use 0% Tactical HUD 1 Map Filters NONE Filters NONE Steam 1 RUN: a7e07a7f-4ed7-4035-afc5-9bb997876213